Cogmind - Beta 11 @@@ ROGUE MODE // 2022.04.24 @ 04:09:42 Player: Fod Result: Escaped! Performance ------------- Evolutions (9) 4500 Regions Visited (33) 6600 Robots Destroyed (642) 3210 Value Destroyed (38296) 38296 Prototype IDs (41) 820 Alien Tech Used (0) 0 Bonus (22952) 22952 TOTAL SCORE: 76378 Bonus ------- Triggered High Security 500 High Alert Combat Kills 12321 Follower Combat Kills 3214 Entered Garrisons 1800 Used RIF Installer 4500 Entered DSFs 500 Aligned with FarCom 300 Scanned by Researcher 500 Win 3000 Friendly Fire -3683 Cogmind --------- Core Integrity 678/1600 Matter 200/300 Energy 446/600 System Corruption 0% Temperature Critical (529) Movement Treading (155) Location To Epsilon Eridani Parts ------- > --- POWER (2) -------- Quantum Reactor Quantum Reactor > --- PROPULSION (6) --- Improved Heavy Treads Biometal Heavy Treads Advanced Heavy Siege Treads > --- UTILITY (14) ----- Advanced Heat Sink Huge Storage Unit Advanced Targeting Computer Advanced Launcher Guidance Computer Advanced Target Analyzer Improved Kinecellerator Improved Focal Shield Advanced Force Field Relay Coupler [Grunt] (9) Relay Coupler [Sentry] (16) Relay Coupler [Specialist] (22) Experimental System Guard Long-range Tractor Beam > --- WEAPON (3) ------- Heavy Linear Accelerator Advanced Micro-nuke Launcher > --- INVENTORY (25) --- Micro Antimatter Reactor Micro Antimatter Reactor Quantum Reactor Improved Heavy Treads Improved Heavy Treads Improved Heavy Treads Compact HERF Cannon Enhanced Nova Cannon Enhanced Nova Cannon Heavy Machine Gun KE Penetrator KE Penetrator Heavy Linear Accelerator Graviton Cannon Graviton Cannon Smartbomb Launcher Smartbomb Launcher Hellfire Missile Launcher Advanced Remote Datajack Peak State ------------ > --- POWER ------------ Reinforced Quantum Reactor Reinforced Quantum Reactor > --- PROPULSION ------- Biometal Heavy Treads Biometal Heavy Treads Advanced Heavy Siege Treads > --- UTILITY ---------- Advanced Heat Sink Huge Storage Unit Advanced Targeting Computer Advanced Target Analyzer Advanced Weapon Cycler Advanced Phase Shifter Layered Heavy Armor Plating Layered Heavy Armor Plating Experimental Force Field Relay Coupler [Grunt] Relay Coupler [Specialist] Relay Coupler [Heavy] > --- WEAPON ----------- Enhanced Nova Cannon Hypervelocity Railgun Graviton Cannon > --- INVENTORY -------- Quantum Reactor Centrium Heavy Treads Biometal Heavy Treads Advanced Heavy Siege Treads Advanced Heat Sink Layered Heavy Armor Plating Advanced Force Field Relay Coupler [Sentry] Long-range Tractor Beam Enhanced Nova Cannon KE Penetrator KE Penetrator Railgun Hardcell Cannon Linear Accelerator Heavy Linear Accelerator Hellfire Missile Launcher Advanced Micro-nuke Launcher Advanced Remote Datajack [Rating: 198] Favorites ----------- Power Reinforced Quantum Reactor Engine Ion Engine Power Core Light Nuclear Core Reactor Reinforced Quantum Reactor Propulsion Light Treads Treads Light Treads Leg Carbon-fiber Leg Wheel Armored Wheel Flight Unit VTOL Module Utility 0b10 Alert Chip Device Advanced Heat Sink Storage Huge Storage Unit Processor 0b10 Alert Chip Hackware Relay Coupler [Grunt] Protection Hardened Heavy Armor Plating Weapon Enhanced Nova Cannon Energy Gun Precision Beam Rifle Energy Cannon Enhanced Nova Cannon Ballistic Gun Heavy Assault Rifle Ballistic Cannon Heavy Gauss Cannon Launcher Improved Proton Missile Launcher Special Weapon Advanced Remote Datajack Slashing Weapon Makeshift Axe Build | -11 -10 -10 -9 -9 -9 -8 -8 -8 -8 -8 -6 -6 -6 -5 -5 -5 -5 -5 -5 -5 -4 -4 -3 -3 -3 -3 -2 -2 -2 -2 -1 -1 -1 ------- Run | Scr Mat Min Mat Min Exi Min Mat Sto Gar Rec Fac DSF Gar Fac Was Fac Gar Fac Upp Upp Fac Gar Res Gar Res Gar Res Gar Res Gar Acc Gar Acc Slots Evolved 18 | . . . 2 . . . 2 . . . 4 . . 2 . . . . . . 2 . 2 . . . 2 . . . 2 . . Power 1 | . . . . . . . . . . . . . . 1 . . . . . . . . . . . . . . . . . . . Propulsion 4 | . . . 1 . . . . . . . 1 . . . . . . . . . 1 . . . . . 1 . . . . . . Utility 12 | . . . . . . . 2 . . . 3 . . 1 . . . . . . 1 . 2 . . . 1 . . . 2 . . Weapon 1 | . . . 1 . . . . . . . . . . . . . . . . . . . . . . . . . . . . . . Parts Attached 860 | . 12 5 26 9 6 5 46 34 12 2 3 16 23 4 2 5 28 34 8 7 6 78 10 45 30 57 91 39 8 29 29 17 134 Power 59 | . 2 1 1 1 . 1 3 1 1 . . . 2 1 . . 2 7 1 1 1 8 1 4 2 2 7 . . 6 . . 3 Engine 12 | . 2 1 1 1 . . 2 . 1 . . . 1 1 . . 2 . . . . . . . . . . . . . . . . Core 21 | . . . . . . 1 1 1 . . . . 1 . . . . 7 . 1 1 7 . 1 . . . . . . . . . Reactor 26 | . . . . . . . . . . . . . . . . . . . 1 . . 1 1 3 2 2 7 . . 6 . . 3 Propulsion 139 | . 4 2 14 2 . 1 11 5 4 . 1 5 4 1 . 3 2 8 3 2 . 21 1 4 4 10 11 2 4 . 2 . 8 Treads 95 | . . . 12 2 . 1 9 5 4 . 1 3 . . . 3 2 3 1 . . 7 1 4 3 7 11 2 4 . 2 . 8 Leg 24 | . 3 . 1 . . . 2 . . . . 2 4 1 . . . . 2 2 . 3 . . 1 3 . . . . . . . Wheel 14 | . 1 2 1 . . . . . . . . . . . . . . 5 . . . 5 . . . . . . . . . . . Hover . | . . . . . . . . . . . . . . . . . . . . . . . . . . . . . . . . . . Flight 6 | . . . . . . . . . . . . . . . . . . . . . . 6 . . . . . . . . . . . Utility 325 | . 4 . 3 1 2 . 8 11 2 . 2 5 7 1 . 2 7 11 1 1 3 27 6 18 13 22 44 23 2 8 13 9 69 Device 166 | . . . . . . . 1 7 . . 1 2 1 1 . 1 4 5 1 . . 10 2 9 5 13 29 9 2 2 7 3 51 Storage 21 | . 2 . 3 . 1 . 1 . . . . 1 . . . . . . . . 2 3 . 1 . 1 1 . . . 1 1 3 Processor 26 | . 1 . . . 1 . 2 . . . . . . . . . . 1 . 1 1 3 . 1 . . 7 1 . 1 1 . 5 Hackware 55 | . . . . . . . . . . . . . 4 . . . 1 3 . . . 8 2 4 5 4 4 7 . 4 2 4 3 Protection 57 | . 1 . . 1 . . 4 4 2 . 1 2 2 . . 1 2 2 . . . 3 2 3 3 4 3 6 . 1 2 1 7 Artifact . | . . . . . . . . . . . . . . . . . . . . . . . . . . . . . . . . . . Weapon 337 | . 2 2 8 5 4 3 24 17 5 2 . 6 10 1 2 . 17 8 3 3 2 22 2 19 11 23 29 14 2 15 14 8 54 Energy Gun 32 | . 1 . 4 . . 1 7 3 2 . . 1 . . 1 . 4 . . . 1 1 . 2 1 3 . . . . . . . Energy Cannon 39 | . . . . . . . 1 2 . . . . 2 . . . 3 . . . . 4 1 2 3 4 3 2 . 3 1 . 8 Ballistic Gun 75 | . 1 2 4 1 2 . 7 4 . . . 2 1 . . . . . . 1 . 8 . 6 . 2 9 2 . 6 7 2 8 Ballistic Cannon 70 | . . . . 2 2 1 5 4 . 1 . 1 . 1 . . 6 5 2 2 . 1 . 3 . 7 8 3 1 1 . 1 13 Launcher 49 | . . . . 1 . 1 1 1 3 . . 2 1 . 1 . 1 1 1 . 1 2 . 2 1 1 3 3 1 3 1 2 15 Special Weapon 59 | . . . . . . . . . . . . . 3 . . . 2 2 . . . 6 1 4 5 6 6 4 . 2 5 3 10 Impact Weapon . | . . . . . . . . . . . . . . . . . . . . . . . . . . . . . . . . . . Slashing Weapon 13 | . . . . 1 . . 3 3 . 1 . . 3 . . . 1 . . . . . . . 1 . . . . . . . . Piercing Weapon . | . . . . . . . . . . . . . . . . . . . . . . . . . . . . . . . . . . Special Melee Weapon . | . . . . . . . . . . . . . . . . . . . . . . . . . . . . . . . . . . Unidentified Prototypes 27 | . . . . . 2 . 4 1 . . . . . . . . . . . . . . 1 . 6 . 6 . 1 . 1 . 5 Corrupted Parts 14 | . . . . . . . . . . . . 1 . . . . . . . . . 11 . . . 2 . . . . . . . System Corruption 98 | . . . . . . . . . . . . 8 . . . . . . . . . 76 . . . 14 . . . . . . . Parts Lost 139 | . 5 . 3 4 . 2 9 4 1 . . 12 . . . . 3 13 1 5 7 13 . 10 . 9 11 . . 3 . 2 22 Power 17 | . 1 . 1 1 . . 2 . . . . . . . . . 1 1 1 1 . 3 . 3 . . 1 . . . . . 1 Propulsion 46 | . 3 . 1 2 . 1 5 1 1 . . 5 . . . . 1 6 . 2 3 4 . 2 . 4 2 . . . . . 3 Utility 47 | . . . . . . . 1 1 . . . 3 . . . . 1 3 . 1 1 5 . 4 . 3 6 . . 2 . 2 14 Weapon 29 | . 1 . 1 1 . 1 1 2 . . . 4 . . . . . 3 . 1 3 1 . 1 . 2 2 . . 1 . . 4 Highest Loss Streak 9 | . 4 . 2 4 . 1 3 3 1 . . 7 . . . . 1 7 1 5 7 4 . 8 . 3 9 . . 2 . 1 6 To Critical Strikes 3 | . 1 . . . . . . . . . . . . . . . . 1 . . 1 . . . . . . . . . . . . Average Slot Usage (%) 90 | . 98 100 100 99 93 99 99 99 100 100 93 73 96 100 100 94 92 94 77 96 88 92 89 88 89 91 83 81 84 85 86 83 83 Engine 2 | . 14 14 11 10 11 9 4 . 6 9 6 6 4 11 11 11 10 2 . . . . . . . . . . . . . . . Core 2 | . . . . . . 1 4 9 2 . . . 1 . . . . 8 6 4 5 7 7 4 . . . . . . . . . Reactor 4 | . . . . . . . . . . . . . . . . . . . 1 3 . 2 1 3 8 9 7 8 8 8 8 8 7 Treads 15 | . . . 25 32 33 33 25 27 27 27 26 14 . . . 15 16 10 3 5 4 5 14 18 19 15 15 13 14 17 15 12 11 Leg 2 | . 27 14 1 . . . 1 . . . . 4 25 23 23 1 . . 4 11 14 8 . . . 2 . . . . . . . Wheel 1 | . . 14 6 . . . . . . . . . . . . . . 7 5 3 . 7 . . . . . . . . . . . Device 12 | . . . . . . . 1 . . . 6 5 8 11 11 11 13 20 12 15 9 10 14 17 12 16 17 17 17 17 18 17 19 Storage 6 | . 14 14 11 11 11 11 9 9 9 9 6 4 6 5 5 5 5 5 5 5 5 5 9 9 9 5 6 4 4 4 4 5 4 Processor 13 | . 8 14 11 6 4 11 16 18 18 18 13 13 13 11 11 11 11 11 17 17 25 16 19 14 14 14 13 13 13 13 14 9 9 Hackware 5 | . . . . . . . . . . . . . 4 11 11 11 2 2 5 5 5 6 2 1 4 4 4 5 4 7 8 15 14 Protection 5 | . 5 . . 4 6 . 8 7 9 9 13 4 8 5 5 5 11 3 . . . 4 5 3 4 7 3 6 8 4 4 3 3 Energy Gun 1 | . 1 4 10 4 . 10 5 5 8 9 6 8 3 . 3 5 2 . . . . 1 . . 3 1 . . . . . . . Energy Cannon 3 | . . . . . . . 2 . . . . . 5 . . . 5 . . . . 3 8 8 5 3 3 4 4 3 4 4 2 Ballistic Gun 5 | . 26 23 22 21 18 11 14 11 9 9 6 7 1 1 . . . . . 1 4 5 . 1 . 1 3 3 4 5 5 3 4 Ballistic Cannon 3 | . . . . 6 8 10 4 8 9 4 6 . . 3 1 . 6 15 9 15 9 . . 1 . 5 4 1 1 . . . 2 Special Weapon 1 | . . . . . . . . . . . . . 2 5 5 5 1 . . . . 1 3 . 2 1 . 2 . . 2 3 1 Naked Turns . | . . . . . . . . . . . . . . . . . . . . . . . . . . . . . . . . . . Heaviest Build 230 | 14 19 15 24 29 39 34 52 52 44 44 65 67 62 62 67 69 104 112 88 88 66 141 163 164 173 186 197 185 178 191 206 198 230 Greatest Support 235 | 20 20 16 60 60 60 60 60 60 60 60 80 80 60 65 65 118 121 121 28 48 48 163 167 167 154 168 230 230 230 220 230 230 235 Greatest Overweight (x) 11 | . 1 1 1 . . . 1 . . . . 6 1 1 1 1 . 5 5 5 2 11 . 1 1 1 1 . 1 . . . . Average Overweight (x) . | . . . . . . . . . . . . . . . . . . 1 3 4 1 1 . . . 1 . . . . . . . Largest Inventory Capacity 25 | . 10 10 25 10 15 15 15 15 15 15 15 15 15 15 15 15 15 15 15 15 25 25 25 25 25 25 25 25 25 25 25 25 25 Average Capacity 20 | . 9 10 10 10 13 15 15 15 15 15 15 12 15 15 15 15 15 15 15 15 15 17 25 25 25 25 25 25 25 25 25 25 25 Most Carried 25 | . 10 9 10 10 15 15 15 15 15 15 14 14 15 15 15 15 15 15 15 11 14 25 25 25 25 25 25 25 25 25 25 25 25 Average Carried 19 | . 8 8 9 9 11 14 14 14 14 15 13 9 14 14 15 14 14 14 11 8 12 14 24 24 24 24 24 24 25 24 24 23 23 Final Capacity 25 | 8 10 10 10 10 15 15 15 15 15 15 15 15 15 15 15 15 15 15 15 15 15 25 25 25 25 25 25 25 25 25 25 25 25 Final Carried 25 | 6 8 9 10 10 15 15 15 15 15 15 14 14 15 15 15 15 15 15 8 11 11 25 25 25 25 23 25 25 25 25 25 25 25 Class Distribution -------------------- 26% | Scavenger-Mutant 17% | Botlord-Mutant 15% | Scavenger-Gunner 9% | Scavenger-Skirmisher 7% | Bothacker-Mutant 5% | Bothacker-Gunner 4% | Botlord-Gunner 3% | Mutant 3% | Skirmisher Dominant Class ---------------- Mutant | -10/Materials Mutant | -10/Mines Scavenger-Gunner | -9/Materials Tank | -9/Mines Tank | -9/Exiles Scavenger-Skirmisher | -8/Mines Scavenger-Skirmisher | -8/Materials Scavenger-Skirmisher | -8/Storage Scavenger-Skirmisher | -8/Garrison Scavenger-Mutant | -8/Recycling Scavenger-Tank | -6/Factory Scavenger-Skirmisher | -6/DSF Scavenger-Mutant | -6/Garrison Scavenger-Mutant | -5/Factory Scavenger-Mutant | -5/Waste Bothacker-Mutant | -5/Factory Scavenger-Mutant | -5/Garrison Bothacker-Gunner | -5/Factory Scavenger-Mutant | -5/Upper Caves Scavenger-Gunner | -5/Upper Caves Scavenger-Mutant | -4/Factory Scavenger-Mutant | -4/Garrison Scavenger-Mutant | -3/Research Botlord-Mutant | -3/Garrison Botlord-Mutant | -3/Research Scavenger-Gunner | -3/Garrison Scavenger-Gunner | -2/Research Scavenger-Mutant | -2/Garrison Scavenger-Mutant | -2/Research Botlord-Mutant | -2/Garrison Botlord-Mutant | -1/Access Botlord-Mutant | -1/Garrison Botlord-Mutant | -1/Access Resources | -11 -10 -10 -9 -9 -9 -8 -8 -8 -8 -8 -6 -6 -6 -5 -5 -5 -5 -5 -5 -5 -4 -4 -3 -3 -3 -3 -2 -2 -2 -2 -1 -1 -1 ----------- Run | Scr Mat Min Mat Min Exi Min Mat Sto Gar Rec Fac DSF Gar Fac Was Fac Gar Fac Upp Upp Fac Gar Res Gar Res Gar Res Gar Res Gar Acc Gar Acc Matter Collected 27729 | 200 286 45 759 502 60 172 947 1091 343 10 . 353 359 . . . 975 1459 510 316 227 1645 207 978 517 1759 3145 1184 145 1231 844 622 6838 Remotely 6058 | . . . . . . . . . . . . . . . . . . . . . . . . . . . 327 . . . 214 350 5167 Salvage Created 32365 | . 517 45 1032 350 . 342 1655 1512 574 22 . 691 955 . . . 784 1303 45 199 260 1590 94 1629 454 1558 3546 1065 34 1239 1253 1252 8365 Parts 1366 | . 22 4 68 10 . 9 79 71 28 6 . 30 38 . . . 34 75 4 5 21 54 2 57 18 52 165 62 4 50 63 50 285 Haulers Intercepted 25 | . 1 . 3 . . . 5 6 . . . . . . . . . . . . . . 1 . 1 . 2 . . . . . 6 Recyclers Shooed 26 | . 2 . 2 1 . . 5 2 . . . . . . . . . 4 . . . . . . 1 . 5 . . . . . 4 Parts Field Recycled . | . . . . . . . . . . . . . . . . . . . . . . . . . . . . . . . . . . Retrieved Matter . | . . . . . . . . . . . . . . . . . . . . . . . . . . . . . . . . . . Parts Self-Destructed 8 | . . . . . . . . . . . . . . . . . . . 3 5 . . . . . . . . . . . . . Prevented . | . . . . . . . . . . . . . . . . . . . . . . . . . . . . . . . . . . Kills | -11 -10 -10 -9 -9 -9 -8 -8 -8 -8 -8 -6 -6 -6 -5 -5 -5 -5 -5 -5 -5 -4 -4 -3 -3 -3 -3 -2 -2 -2 -2 -1 -1 -1 ------- Run | Scr Mat Min Mat Min Exi Min Mat Sto Gar Rec Fac DSF Gar Fac Was Fac Gar Fac Upp Upp Fac Gar Res Gar Res Gar Res Gar Res Gar Acc Gar Acc Combat Hostiles Destroyed 581 | . 13 3 23 18 . 6 21 27 20 1 . 9 13 . . . 24 25 5 6 5 19 . 27 5 27 37 26 2 19 16 38 146 Melee 6 | . . . . . . . . . . 1 . . 3 . . . . 1 . . . . . . . . . 1 . . . . . Guns 153 | . 12 3 23 7 . 2 11 14 3 . . 5 3 . . . 6 . . 1 . 3 . 2 . 3 8 5 . 5 5 2 30 Cannons 208 | . . . . 3 . 1 9 13 7 . . . 4 . . . 7 15 2 5 3 5 . 4 1 22 25 9 . 5 6 4 58 AOE 180 | . 1 . . 8 . 3 1 . 10 . . 3 2 . . . 5 9 3 . 2 7 . 11 3 1 2 10 2 8 4 32 53 Classes Destroyed 26 | . 4 . 4 1 . . 3 1 . 1 . 3 . . . . . 2 . . . 1 . . . . 1 . . 1 . . 4 Worker 16 | . . . . . . . 1 3 . . . . . . . . . 3 . . . . . . . . 1 . . . 1 . 7 Builder 17 | . . . . . . . 2 . . . . . . . . . . 4 . . 2 . . . 1 . 1 . . . . . 7 Tunneler 4 | . . . . . . . . . . . . . . . . . . 3 . . . . . . . . . . . . . . 1 Hauler 25 | . 1 . 3 . . . 5 6 . . . . . . . . . . . . . . 1 . 1 . 2 . . . . . 6 Recycler 23 | . 1 . . 2 . 2 4 3 . . . . . . . . . 3 . . 1 . . . . . 6 . . . . . 1 Mechanic 5 | . . . . . . . . . . . . . . . . . . . . . . . . . . . . . . . . . 5 Operator 5 | . . . 1 . . . . 2 . . . . . . . . . 2 . . . . . . . . . . . . . . . Watcher 10 | . . . 1 . . . 3 1 . . . . . . . . . 1 . . . . . . . . 1 . . . 1 . 2 Swarmer 132 | . 5 3 7 . . . . 4 7 . . . 4 . . . 13 . 5 . 3 10 . 10 4 7 . 14 2 5 . 17 12 Cutter 7 | . . . . . . . . . . . . . . . . . . . . . . . . . . . 3 . . . . 4 . Saboteur 5 | . . . . . . . . . . . . . . . . . . 3 . . . . . . . . . 1 . . 1 . . Grunt 193 | . 8 . 8 2 . 5 10 8 9 . . 2 2 . . . 4 9 . 5 . 2 . 7 2 11 9 7 . 6 7 12 58 Brawler 22 | . . . 1 . . 1 . 1 1 . . . 1 . . . 1 1 . . . . . . . 1 . . . . 2 1 11 Duelist 12 | . . . . . . . . 1 . . . . 1 . . . 1 . . . . . . 2 . 1 . . . . . . 6 Protector 8 | . . . . . . . . . . 1 . . . . . . . . . . . . . . . . . . . 1 . . 6 Sentry 67 | . . . 7 . . . 9 12 2 . . 1 3 . . . 2 1 . . . 5 . 2 . 6 5 . . 1 3 . 8 Demolisher 1 | . . . . . . . . . . . . . . . . . . . . . . . . . . . . . . 1 . . . Specialist 10 | . . . . . . . . . . . . 3 1 . . . . . . . . . . 2 . . 4 . . . . . . Hunter 55 | . . . . . . . 2 1 1 . . 1 1 . . . 3 5 . 1 . 1 . 2 . 1 3 2 . 4 . 6 21 Programmer 55 | . . . . . . . . . . . . 1 1 . . . . 6 . . 2 . . 2 . 1 12 3 . 2 3 . 22 Heavy 4 | . . . . . . . . . . . . 1 . . . . . . . . . . . . . . 2 . . . . . 1 Behemoth 3 | . . . . . . . . . . . . . . . . . . . . . . 1 . . . . . . . 1 . . 1 Investigator 1 | . . . . . . . . . . . . . . . . . . . . . . . . . . . . . . . . . 1 Striker 1 | . . . . . . . . . . . . . . . . . . . . . . . . . . . . . . . . . 1 Executioner 1 | . . . . . . . . . . . . . . . . . . . . . . . . . . . . . . . . . 1 Assembled 16 | . . . . 16 . . . . . . . . . . . . . . . . . . . . . . . . . . . . . Thug 1 | . . . . 1 . . . . . . . . . . . . . . . . . . . . . . . . . . . . . Best Kill Streak 32 | . 4 3 8 15 . 4 6 10 7 1 . 3 5 . . . 6 13 5 4 4 5 1 10 4 5 10 7 2 12 6 32 20 Combat Bots Only 32 | . 4 3 8 15 . 3 3 8 7 1 . 3 5 . . . 6 11 5 4 3 5 . 10 4 5 4 7 2 12 6 32 16 Max Kills in Single Turn 6 | . 1 1 2 2 . 2 2 2 3 1 . 2 1 . . . 4 5 3 1 2 2 1 4 2 2 3 3 2 4 2 6 6 Gunslinging 1 | . . . 1 . . . . . . . . . . . . . . . . . . . . . . . . . . . . . . Exploded 5 | . 1 . . 2 . 2 1 . 3 . . 2 1 . . . 4 4 3 . 2 2 . 4 2 1 2 3 2 4 2 5 5 Melee 1 | . . . . . . . . . . 1 . . 1 . . . . 1 . . . . . . . . . 1 . . . . . Uniques/NPCs Destroyed . | . . . . . . . . . . . . . . . . . . . . . . . . . . . . . . . . . . Combat | -11 -10 -10 -9 -9 -9 -8 -8 -8 -8 -8 -6 -6 -6 -5 -5 -5 -5 -5 -5 -5 -4 -4 -3 -3 -3 -3 -2 -2 -2 -2 -1 -1 -1 -------- Run | Scr Mat Min Mat Min Exi Min Mat Sto Gar Rec Fac DSF Gar Fac Was Fac Gar Fac Upp Upp Fac Gar Res Gar Res Gar Res Gar Res Gar Acc Gar Acc Damage Taken 41908 | . 747 63 993 742 . 292 1455 1589 368 86 . 2055 599 . . . 1542 2261 125 453 630 2059 . 3625 275 2532 4928 1054 110 2084 280 670 10291 Core 3512 | . 211 26 163 62 . . 45 138 . . . 414 76 . . . 71 220 55 27 91 230 . 142 6 195 313 33 22 50 . 35 887 Absorbed by Shields 10337 | . . . . . . . . . . . . 103 . . . . 167 592 20 161 79 147 . 181 . 830 1300 379 42 540 253 700 4843 Reduced by Siege Mode 731 | . . . . . . . . . . . . . . . . . . . . . . . . 130 . 19 109 7 . 106 . . 360 Redirected to Shielding 50 | . 3 . . . . . . . . . . . . . . . . . . . . . . . . . . 17 30 . . . . Regen/Repaired (Parts) 28 | . . . 28 . . . . . . . . . . . . . . . . . . . . . . . . . . . . . . Core Remaining (%) 57 | 100 . 5 . . . 43 . . . 66 . . 42 . . . . . . 62 . 72 . . . 73 . . . 71 . . 42 Volleys Fired 1882 | . 54 3 68 27 . 18 73 82 27 . . 37 37 3 4 . 66 76 4 16 8 157 9 80 37 104 155 65 3 79 68 53 469 Largest 3 | . 2 2 3 3 . 3 3 3 3 . . 3 2 1 1 . 3 3 2 3 3 3 2 3 3 3 3 3 3 3 3 3 3 Hottest 253 | . 40 60 102 81 . 114 133 185 128 . . 145 150 5 5 . 243 183 122 179 137 188 195 253 253 225 252 226 219 200 200 225 230 Shots Fired 3714 | . 104 6 203 65 . 37 210 233 61 . . 88 50 3 4 . 141 165 7 37 17 187 11 148 57 208 327 118 7 125 120 84 891 Gun 1706 | . 104 6 203 42 . 19 151 149 37 . . 74 21 . . . 36 . . 6 5 108 . 60 13 38 96 43 2 60 54 26 353 Cannon 1640 | . . . . 17 . 14 59 84 17 . . 7 18 . . . 97 155 6 31 11 42 4 65 21 158 206 53 4 58 44 36 433 Launcher 142 | . . . . 6 . 4 . . 7 . . 7 4 . . . 1 5 1 . 1 14 . 7 3 . 2 7 1 6 2 12 52 Special 226 | . . . . . . . . . . . . . 7 3 4 . 7 5 . . . 23 7 16 20 12 23 15 . 1 20 10 53 Kinetic 2271 | . 104 3 144 59 . 26 156 172 34 . . 44 1 . . . 54 155 6 37 15 102 . 66 . 124 203 58 4 60 54 32 558 Thermal 858 | . . 3 59 . . 7 54 43 20 . . 37 20 . . . 36 . . . 1 8 4 31 13 23 99 38 2 58 44 30 228 Explosive 106 | . . . . 6 . 4 . . 4 . . 2 . . . . 1 5 1 . 1 . . . . . 2 7 1 6 2 12 52 Electromagnetic 253 | . . . . . . . . 18 3 . . 5 22 . . . 43 . . . . 54 . 35 24 49 . . . . . . . Robot Hit Streak 32 | . 8 4 17 10 . 6 19 22 11 . . 19 19 13 3 . 10 7 1 12 15 32 12 25 11 16 26 31 11 30 21 12 27 Robot Miss Streak 11 | . 4 1 4 3 . 2 7 8 4 . . 2 1 1 1 . 11 3 2 2 1 3 1 4 2 4 3 5 1 4 3 6 4 Penetration Max 2 | . . . . . . . . . . . . . . . . . . 1 . . . . . . . . 2 1 . 2 1 . 2 Secondary Targets 13 | . 2 1 5 . . . . 1 . . . 1 . . . . . . . . . . . . . . . . . 2 . . 1 Max Gunslinging Chain 1 | . 1 1 1 . . . . 1 . . . 1 . . . . . . . . . . . . . . . . . 1 . . 1 Shots Hit Robots 2471 | . 58 5 129 41 . 26 141 175 45 2 . 71 68 2 3 . 91 92 3 26 11 126 9 98 41 119 236 78 5 62 77 47 584 Core Hits 1397 | . 24 4 45 42 . 16 71 115 43 1 . 31 33 . . . 38 73 6 10 7 67 2 43 14 44 86 43 3 46 36 87 367 Critical Kills 74 | . . . . . . . 1 . . . . 1 . . . . . . . . . 2 . 4 . 8 14 6 . 8 8 1 21 Critical Parts Destroyed 96 | . 1 . . . . . . . . . . . . . . . . . . . . 6 . . . 13 19 4 . 13 9 2 29 Critical Strikes 289 | . 1 . 7 . . 1 4 2 . . . 4 6 . . . 7 19 1 5 3 10 . 8 1 32 40 12 . 26 21 3 76 Burn 17 | . . . 7 . . 1 2 2 . . . 3 . . . . 2 . . . . . . . . . . . . . . . . Meltdown 13 | . . . . . . . . . . . . . . . . . . . . . . . . 3 . . 2 1 . 1 1 . 5 Destroy 172 | . 1 . . . . . 1 . . . . 1 . . . . . . . . . 8 . 1 . 22 32 11 . 25 20 3 47 Blast 71 | . . . . . . . 1 . . . . . . . . . 3 19 1 5 3 . . 1 . 8 6 . . . . . 24 Corrupt 10 | . . . . . . . . . . . . . . . . . 2 . . . . 2 . 3 1 2 . . . . . . . Sever 6 | . . . . . . . . . . . . . 6 . . . . . . . . . . . . . . . . . . . . Melee Attacks 78 | . . . . 1 . . 9 10 . 13 . . 44 . . . 1 . . . . . . . . . . . . . . . . Impact . | . . . . . . . . . . . . . . . . . . . . . . . . . . . . . . . . . . Slashing 78 | . . . . 1 . . 9 10 . 13 . . 44 . . . 1 . . . . . . . . . . . . . . . . Piercing . | . . . . . . . . . . . . . . . . . . . . . . . . . . . . . . . . . . Sneak Attacks 5 | . . . . . . . . . . 2 . . 3 . . . . . . . . . . . . . . . . . . . . Combat Hostiles 2 | . . . . . . . . . . . . . 2 . . . . . . . . . . . . . . . . . . . . Follow-up Attacks . | . . . . . . . . . . . . . . . . . . . . . . . . . . . . . . . . . . Damage Inflicted 96815 | . 567 52 1616 1317 . 708 2815 3774 1532 160 . 1985 2315 . . . 3148 5726 495 838 610 2519 176 3420 1106 3539 7738 3780 301 3046 2251 5883 35398 Guns 20556 | . 564 52 1614 488 . 222 1632 1924 461 . . 1059 278 . . . 524 . . 60 83 1121 . 690 242 588 1342 300 53 475 321 243 6220 Cannons 38643 | . . . . 181 . 135 853 1630 239 . . 200 425 . . . 2203 3586 108 766 260 889 116 1682 629 2695 5776 1255 90 745 1130 895 12155 Explosions 35571 | . . . . 638 . 351 302 176 832 . . 726 187 . . . 421 2112 338 . 261 509 . 1048 235 256 489 2225 158 1826 800 4745 16936 Melee 1579 | . . . . . . . . . . 154 . . 1425 . . . . . . . . . . . . . . . . . . . . Ramming 466 | . 3 . 2 10 . . 28 44 . 6 . . . . . . . 28 49 12 6 . 60 . . . 131 . . . . . 87 Kinetic 35877 | . 564 20 1001 669 . 270 1582 2660 462 . . 649 14 . . . 1257 3586 108 826 331 934 . 758 . 2047 3839 622 99 475 321 341 12442 Thermal 19463 | . . 32 613 . . 87 903 788 238 . . 610 264 . . . 710 . . . 25 267 116 980 242 651 3279 933 44 745 1130 797 6009 Explosive 32038 | . . . . 638 . 351 302 . 704 . . 276 . . . . 235 1843 338 . 248 . . . . . 489 2225 158 1826 800 4745 16860 Electromagnetic 7392 | . . . . . . . . 282 128 . . 450 612 . . . 946 269 . . . 1318 . 1682 864 841 . . . . . . . Impact . | . . . . . . . . . . . . . . . . . . . . . . . . . . . . . . . . . . Slashing 1579 | . . . . . . . . . . 154 . . 1425 . . . . . . . . . . . . . . . . . . . . Piercing . | . . . . . . . . . . . . . . . . . . . . . . . . . . . . . . . . . . Highest Corruption 79 | . . . . . . . . . . . . 8 8 . 11 11 11 24 25 25 3 79 . 4 4 19 19 5 5 6 . . 16 Average Corruption 8 | . . . . . . . . . . . . 8 8 . 6 11 11 12 24 25 2 3 . 3 4 8 8 5 5 5 . . 7 Corruption Purged 21 | . . . . . . . . . . . . . . . . . . . . . . . . . . . 14 . . . . . 7 Corruption Blocked . | . . . . . . . . . . . . . . . . . . . . . . . . . . . . . . . . . . Effects 844 | . . . . . . . . . . . . 7 36 . 3 5 68 60 59 27 . 70 . 58 22 133 75 43 5 43 . . 130 Message Errors 208 | . . . . . . . . . . . . 2 8 . 1 2 18 19 17 7 . 13 . 21 2 35 15 7 1 13 . . 27 Matter Fused 184 | . . . . . . . . . . . . 1 9 . 1 . 17 7 13 9 . 19 . 10 4 30 14 12 1 10 . . 27 Heat Flow Errors 94 | . . . . . . . . . . . . . 3 . 1 1 9 6 7 1 . 8 . 7 2 17 9 4 1 4 . . 14 Energy Discharges 115 | . . . . . . . . . . . . 2 6 . . 1 10 6 12 2 . 11 . 8 6 13 7 6 2 4 . . 19 Parts Rejected 8 | . . . . . . . . . . . . . . . . . . 4 . 1 . . . . . 1 . . . . . . 2 Data Loss (minor) 111 | . . . . . . . . . . . . . 3 . . 1 5 10 7 5 . 8 . 8 . 17 16 10 . 5 . . 16 Data Loss (major) 40 | . . . . . . . . . . . . . 1 . . . 2 2 2 . . 9 . 3 3 8 2 . . 3 . . 5 Misfires 28 | . . . . . . . . . . . . . 2 . . . 1 1 . . . . . . 4 5 5 2 . 1 . . 7 Alerts 22 | . . . . . . . . . . . . . 1 . . . 2 1 1 . . 1 . 1 . 2 3 1 . 3 . . 6 Misdirections 2 | . . . . . . . . . . . . . . . . . . 1 . . . . . . . . . . . . . . 1 Weapon Failures 32 | . . . . . . . . . . . . 2 3 . . . 4 3 . 2 . 1 . . 1 5 4 1 . . . . 6 Overload Shots 1 | . . . . . . . . . . . . . . . . . . . . . . . . . . 1 . . . . . . . Overflow Damage 2621 | . . . . 7 . . 61 21 34 57 . 6 4 . . . 32 232 76 11 96 . . 123 30 41 317 157 . 213 4 102 997 Projectiles 1303 | . . . . . . . . 9 . . . . 4 . . . 32 229 33 11 8 . . 76 13 41 291 14 . 32 . . 510 Explosions 1258 | . . . . 7 . . 61 12 34 . . 6 . . . . . 3 40 . 88 . . 47 17 . 26 143 . 181 4 102 487 Melee 60 | . . . . . . . . . . 57 . . . . . . . . 3 . . . . . . . . . . . . . . Knockbacks 172 | . . . . 1 . 1 7 28 7 . . . . . . . 13 24 1 3 1 . 1 4 . 15 19 3 . . . 1 43 Impact 4 | . . . . . . . . . . . . . . . . . . . . . . . 1 . . . 2 . . . . . 1 Kinetic 156 | . . . . 1 . 1 7 26 6 . . . . . . . 11 24 1 3 1 . . 4 . 14 16 3 . . . 1 37 Secondary 12 | . . . . . . . . 2 1 . . . . . . . 2 . . . . . . . . 1 1 . . . . . 5 Self-Inflicted Damage 1528 | . . . . 85 . . 80 82 55 . . . . . . . 75 38 21 . 89 37 . 12 . 38 31 . . 63 . . 822 Shots 37 | . . . . 3 . . 1 2 1 . . . . . . . 2 2 1 . 2 2 . 2 . 1 2 . . 2 . . 14 Rammed 65 | . . . 1 2 . . 6 6 . 1 . . . . . . . 4 17 5 3 . 2 . 1 . 13 . . . . . 4 Targets Rammed 68 | . 1 . 1 2 . . 7 6 . 1 . . . . . . . 5 17 5 3 . 2 . 1 . 13 . . . . . 4 Kicked 1 | . 1 . . . . . . . . . . . . . . . . . . . . . . . . . . . . . . . . Crushed 2 | . . . . . . . 1 . . . . . . . . . . 1 . . . . . . . . . . . . . . . Highest Temperature 837 | . 12 20 342 156 . 305 344 396 371 . . 837 204 . 247 140 458 470 235 396 4 254 200 396 249 256 669 373 172 320 280 199 643 Average Temperature 119 | . 7 15 90 45 . 162 108 122 120 . . 227 59 . 135 94 142 148 90 172 4 67 108 146 86 67 162 114 78 89 82 90 128 Received Heat Transfer 5626 | . 222 . 327 85 . 180 522 477 90 18 . 324 141 . . . 245 456 . 103 141 258 . 295 30 325 269 96 12 276 46 28 660 Effects 112 | . . . 1 . . 3 4 1 3 . . 15 . . . . 2 5 . 1 . . . 3 . 3 20 . . . . . 51 Shutdowns 28 | . . . . . . . . . . . . 2 . . . . . 4 . . . . . . . . 3 . . . . . 19 Energy Bleed 12 | . . . 1 . . 1 . 1 . . . 2 . . . . 2 . . . . . . . . . 2 . . . . . 3 Interference 37 | . . . . . . 2 3 . 3 . . 2 . . . . . . . . . . . 3 . 3 10 . . . . . 11 Matter Decay 2 | . . . . . . . . . . . . . . . . . . 1 . . . . . . . . . . . . . . 1 Short Circuit 6 | . . . . . . . 1 . . . . 3 . . . . . . . 1 . . . . . . 1 . . . . . . Damage (minor) 10 | . . . . . . . . . . . . 2 . . . . . . . . . . . . . . 1 . . . . . 7 Damage (major) 13 | . . . . . . . . . . . . 2 . . . . . . . . . . . . . . 3 . . . . . 8 Damage (core) 4 | . . . . . . . . . . . . 2 . . . . . . . . . . . . . . . . . . . . 2 Siege Activations 36 | . . . . . . . . . . . . . . . . . . . . . . . . 3 . 2 4 1 . 2 . 2 22 Total Turns 609 | . . . . . . . . . . . . . . . . . . . . . . . . 85 . 24 55 31 . 67 . 17 330 Longest Duration 63 | . . . . . . . . . . . . . . . . . . . . . . . . 44 . 15 24 31 . 63 . 12 48 Robots Corrupted 22 | . . . . . . . . . . . . 2 1 . . . 6 . . . . 4 . 7 1 1 . . . . . . . Combat Hostiles 20 | . . . . . . . . . . . . . 1 . . . 6 . . . . 4 . 7 1 1 . . . . . . . Parts Fried 49 | . . . . . . . . 1 . . . 1 5 . . . 7 . . . . 9 . 16 6 3 . . . . . 1 . Impact Corruptions 9 | . . . . . . . . . . . . . . . . . . . 6 . . . . . . . . . . . . . 3 Robots Melted 14 | . . . . . . . . . . . . 1 . . . . . . . . . . . 3 . . 2 1 . 1 1 . 5 Combat Hostiles 14 | . . . . . . . . . . . . 1 . . . . . . . . . . . 3 . . 2 1 . 1 1 . 5 Parts Melted 51 | . . . 3 . . . . 1 . . . 1 1 . . . . . . . . . . 7 . . 13 4 . 1 2 . 18 Heat Transferred 22603 | . . 75 2050 . . 296 1813 1712 518 . . 1517 555 . . . 893 . . . 75 525 37 877 296 681 2701 758 37 591 924 703 4969 Parts Sabotaged 6 | . . . . . . . . . . . . . . . . . . 1 . . . . . . . . . 3 . . . . 2 Parts Stolen . | . . . . . . . . . . . . . . . . . . . . . . . . . . . . . . . . . . Parts Stripped . | . . . . . . . . . . . . . . . . . . . . . . . . . . . . . . . . . . Power Chain Reactions 13 | . . . . . . . . 3 . . . . . . . . 3 2 . . . 2 . 2 . 1 . . . . . . . Missiles Intercepted . | . . . . . . . . . . . . . . . . . . . . . . . . . . . . . . . . . . Alert | -11 -10 -10 -9 -9 -9 -8 -8 -8 -8 -8 -6 -6 -6 -5 -5 -5 -5 -5 -5 -5 -4 -4 -3 -3 -3 -3 -2 -2 -2 -2 -1 -1 -1 ------- Run | Scr Mat Min Mat Min Exi Min Mat Sto Gar Rec Fac DSF Gar Fac Was Fac Gar Fac Upp Upp Fac Gar Res Gar Res Gar Res Gar Res Gar Acc Gar Acc Peak Influence 3522 | . 237 173 564 108 . 62 174 483 826 383 933 766 1018 558 207 144 688 1053 . . 234 660 383 626 417 1194 766 1054 858 1289 929 1488 3522 Initial 929 | . . 88 66 108 . . 21 55 48 371 929 653 559 534 195 144 100 361 . . 38 156 371 15 351 153 671 187 592 643 772 644 892 Average 623 | . 121 170 271 53 . 47 86 213 494 220 929 740 814 547 199 144 481 569 . . 54 462 130 435 272 767 319 783 754 1060 774 1236 1361 Maximum Alert Level 5 | . 1 . 2 . . . . 2 3 1 3 3 3 2 1 . 2 3 . . 1 2 1 2 2 4 3 3 3 4 3 4 5 Low Security (%) 21 | . 87 100 22 100 . 100 100 60 14 40 . . . . 66 100 5 . . . 96 1 81 6 27 1 34 4 . . . . 2 Level 1 20 | . 12 . 71 . . . . 26 28 59 . . . . 33 . 13 27 . . 3 42 18 31 67 20 43 10 . . . . 4 Level 2 23 | . . . 6 . . . . 13 39 . . 5 25 100 . . 80 56 . . . 56 . 62 5 10 10 13 20 10 22 8 15 Level 3 21 | . . . . . . . . . 18 . 100 94 74 . . . . 15 . . . . . . . 48 11 72 79 44 77 11 28 Level 4 9 | . . . . . . . . . . . . . . . . . . . . . . . . . . 19 . . . 44 . 79 19 Level 5 1 | . . . . . . . . . . . . . . . . . . . . . . . . . . . . . . . . . 9 High Security 2 | . . . . . . . . . . . . . . . . . . . . . . . . . . . . . . . . . 20 Max Security . | . . . . . . . . . . . . . . . . . . . . . . . . . . . . . . . . . . Sterilizations 2 | . . . . . . . . . . . . 1 . . . . . . . . . . . . . . . . . . . . 1 Squads Dispatched 95 | . 4 . 2 . . . 2 7 . . . 2 . 1 . . . 8 . . 3 . . . 3 . 15 . . . 6 . 42 Investigation 4 | . 1 . . . . . . 1 . . . . . . . . . . . . . . . . . . 1 . . . 1 . . Extermination 15 | . . . . . . . . . . . . . . . . . . 2 . . 1 . . . 1 . 4 . . . 1 . 6 Reinforcement 35 | . 3 . 2 . . . 2 2 . . . 2 . 1 . . . 5 . . 1 . . . 1 . 9 . . . . . 7 Assault 24 | . . . . . . . . . . . . . . . . . . 1 . . . . . . . . 1 . . . 3 . 19 Garrison 17 | . . . . . . . . 4 . . . . . . . . . . . . 1 . . . 1 . . . . . 1 . 10 Intercept . | . . . . . . . . . . . . . . . . . . . . . . . . . . . . . . . . . . Searches Triggered . | . . . . . . . . . . . . . . . . . . . . . . . . . . . . . . . . . . Construction Impeded 6 | . . . . . . . . . . . . . . . . . . 2 . . . . . . . . 1 . . . . . 3 Haulers Reinforced 5 | . . . . . . . . . . . . . . . . . . 2 . . . . . . 1 . . . . . . . 2 Active Scanning Responses . | . . . . . . . . . . . . . . . . . . . . . . . . . . . . . . . . . . Cargo Convoy Interrupts 2 | . . . . . . . . . . . . . . . . . . 1 . . . . . . 1 . . . . . . . . Stealth | -11 -10 -10 -9 -9 -9 -8 -8 -8 -8 -8 -6 -6 -6 -5 -5 -5 -5 -5 -5 -5 -4 -4 -3 -3 -3 -3 -2 -2 -2 -2 -1 -1 -1 --------- Run | Scr Mat Min Mat Min Exi Min Mat Sto Gar Rec Fac DSF Gar Fac Was Fac Gar Fac Upp Upp Fac Gar Res Gar Res Gar Res Gar Res Gar Acc Gar Acc Distress Signals 44 | . . . 5 . . . 7 5 . . . . . . . . . 2 . . . . . . 4 . 3 . . . 2 . 16 Communications Jammed . | . . . . . . . . . . . . . . . . . . . . . . . . . . . . . . . . . . Distress Signals . | . . . . . . . . . . . . . . . . . . . . . . . . . . . . . . . . . . Times Spotted 950 | . 29 3 38 22 . 6 39 45 19 12 . 8 22 1 3 . 32 46 5 6 11 47 6 34 29 44 56 43 7 27 32 37 241 Peak Tracking Total 21 | . 8 2 8 8 . 3 6 8 5 5 . 3 5 1 3 . 7 12 5 5 5 5 3 12 7 9 4 6 4 8 7 14 21 Tactical Retreats 48 | . 1 . 1 2 . . 2 2 . . . . 4 . . . 6 3 . . . 6 . 2 2 1 2 2 . 3 . 1 8 Traps | -11 -10 -10 -9 -9 -9 -8 -8 -8 -8 -8 -6 -6 -6 -5 -5 -5 -5 -5 -5 -5 -4 -4 -3 -3 -3 -3 -2 -2 -2 -2 -1 -1 -1 ------- Run | Scr Mat Min Mat Min Exi Min Mat Sto Gar Rec Fac DSF Gar Fac Was Fac Gar Fac Upp Upp Fac Gar Res Gar Res Gar Res Gar Res Gar Acc Gar Acc Traps Triggered 64 | . 1 . . . . . . 1 . . . . 4 1 . . 7 . 1 . . 8 . 12 2 13 6 2 . 1 1 1 3 Indirectly . | . . . . . . . . . . . . . . . . . . . . . . . . . . . . . . . . . . Trap Hack Attempts . | . . . . . . . . . . . . . . . . . . . . . . . . . . . . . . . . . . Triggered . | . . . . . . . . . . . . . . . . . . . . . . . . . . . . . . . . . . Disarmed . | . . . . . . . . . . . . . . . . . . . . . . . . . . . . . . . . . . Reprogrammed . | . . . . . . . . . . . . . . . . . . . . . . . . . . . . . . . . . . Reused . | . . . . . . . . . . . . . . . . . . . . . . . . . . . . . . . . . . Traps Extracted . | . . . . . . . . . . . . . . . . . . . . . . . . . . . . . . . . . . Installed . | . . . . . . . . . . . . . . . . . . . . . . . . . . . . . . . . . . Triggered 2 | . . . . . . . . . . . . . 1 . . . . . . . . . . . 1 . . . . . . . . Machines | -11 -10 -10 -9 -9 -9 -8 -8 -8 -8 -8 -6 -6 -6 -5 -5 -5 -5 -5 -5 -5 -4 -4 -3 -3 -3 -3 -2 -2 -2 -2 -1 -1 -1 ---------- Run | Scr Mat Min Mat Min Exi Min Mat Sto Gar Rec Fac DSF Gar Fac Was Fac Gar Fac Upp Upp Fac Gar Res Gar Res Gar Res Gar Res Gar Acc Gar Acc Machines Disabled 89 | . . . . . . . 4 2 4 . . 1 3 . . . 4 22 . . 5 4 . 4 1 5 2 4 . 7 . 6 11 Max in Single Turn 6 | . . . . . . . 3 1 1 . . 1 1 . . . 1 6 . . 5 1 . 1 1 2 1 1 . 1 . 2 2 Garrison Access 2 | . . . . . . . . . . . . . . . . . . 1 . . . . . . . . . . . . . . 1 Garrison Relay 33 | . . . . . . . . . 3 . . . 3 . . . 3 . . . . 4 . 4 . 4 . 4 . 4 . 4 . Phase Generator 1 | . . . . . . . . . . . . . . . . . . . . . . . . . . 1 . . . . . . . Energy Cycler 2 | . . . . . . . . . . . . . . . . . . . . . . . . . . . . . . . . . 2 Machines Sabotaged . | . . . . . . . . . . . . . . . . . . . . . . . . . . . . . . . . . . Garrisons Compromised 1 | . . . . . . . . . . . . . . . . . . . . . . . . . 1 . . . . . . . . Overloaded Fab Kills . | . . . . . . . . . . . . . . . . . . . . . . . . . . . . . . . . . . Hacking | -11 -10 -10 -9 -9 -9 -8 -8 -8 -8 -8 -6 -6 -6 -5 -5 -5 -5 -5 -5 -5 -4 -4 -3 -3 -3 -3 -2 -2 -2 -2 -1 -1 -1 --------- Run | Scr Mat Min Mat Min Exi Min Mat Sto Gar Rec Fac DSF Gar Fac Was Fac Gar Fac Upp Upp Fac Gar Res Gar Res Gar Res Gar Res Gar Acc Gar Acc Machines Accessed 68 | . 4 . 5 . 3 . 7 9 . 7 1 . . 3 . 1 . 8 . . 2 . 4 . 4 . 6 . 1 . 3 . . Terminals 47 | . 4 . 3 . . . 6 8 . 6 1 . . 2 . . . 6 . . 1 . 2 . 2 . 4 . . . 2 . . Fabricators 3 | . . . . . . . . . . . . . . 1 . . . . . . . . 1 . . . 1 . . . . . . Repair Stations 3 | . . . 1 . . . . . . . . . . . . . . 1 . . . . . . 1 . . . . . . . . Recycling Units 1 | . . . . . . . . . . 1 . . . . . . . . . . . . . . . . . . . . . . . Scanalyzers 3 | . . . 1 . . . 1 . . . . . . . . . . 1 . . . . . . . . . . . . . . . Garrison Access 8 | . . . . . . . . 1 . . . . . . . 1 . . . . 1 . 1 . 1 . 1 . 1 . 1 . . Total Hacks 190 | . 17 . 14 . 26 . 26 20 . 24 3 . . 11 . 1 . 20 . . 3 . 6 . 5 . 9 . 1 . 4 . . Successful 121 | . 10 . 8 . 26 . 22 10 . 13 1 . . 6 . 1 . 11 . . 2 . 4 . 1 . 3 . 1 . 2 . . Failed 69 | . 7 . 6 . . . 4 10 . 11 2 . . 5 . . . 9 . . 1 . 2 . 4 . 6 . . . 2 . . Catastrophic 12 | . 1 . 1 . . . 1 . . 1 . . . 1 . . . 1 . . . . 1 . 2 . 2 . . . 1 . . Database Lockouts . | . . . . . . . . . . . . . . . . . . . . . . . . . . . . . . . . . . Manual 57 | . 5 . 6 . 1 . 12 6 . 13 . . . 5 . . . 7 . . . . . . . . 2 . . . . . . Terminals 132 | . 17 . 10 . . . 19 19 . 22 3 . . 9 . . . 17 . . 1 . 3 . 3 . 7 . . . 2 . . Fabricators 4 | . . . . . . . . . . . . . . 2 . . . . . . . . 1 . . . 1 . . . . . . Repair Stations 4 | . . . 2 . . . . . . . . . . . . . . 1 . . . . . . 1 . . . . . . . . Recycling Units 2 | . . . . . . . . . . 2 . . . . . . . . . . . . . . . . . . . . . . . Scanalyzers 11 | . . . 2 . . . 7 . . . . . . . . . . 2 . . . . . . . . . . . . . . . Garrison Access 11 | . . . . . . . . 1 . . . . . . . 1 . . . . 2 . 2 . 1 . 1 . 1 . 2 . . Terminal Hacks 72 | . 8 . 2 . 26 . 9 7 . 7 1 . . 3 . . . 7 . . . . 1 . . . 1 . . . . . . Record 27 | . . . . . 26 . 1 . . . . . . . . . . . . . . . . . . . . . . . . . . Part Schematic 3 | . . . . . . . . . . 3 . . . . . . . . . . . . . . . . . . . . . . . Prototype ID Bank 5 | . 2 . 1 . . . . 1 . 1 . . . . . . . . . . . . . . . . . . . . . . . Open Door 3 | . . . . . . . . 3 . . . . . . . . . . . . . . . . . . . . . . . . . Open DSF 3 | . . . . . . . . . . . 1 . . . . . . 2 . . . . . . . . . . . . . . . Branch Access Points 2 | . . . . . . . 1 . . . . . . . . . . . . . . . . . . . 1 . . . . . . Emergency Access Points 4 | . 2 . . . . . 1 . . . . . . . . . . . . . . . 1 . . . . . . . . . . Terminal Index 3 | . 1 . . . . . . . . 1 . . . 1 . . . . . . . . . . . . . . . . . . . Unreport Threat 6 | . . . 1 . . . 1 2 . 1 . . . . . . . 1 . . . . . . . . . . . . . . . Locate Traps 5 | . 1 . . . . . 1 1 . . . . . 1 . . . 1 . . . . . . . . . . . . . . . Maintenance Status 1 | . . . . . . . 1 . . . . . . . . . . . . . . . . . . . . . . . . . . Hauler Manifests 4 | . 1 . . . . . 1 . . . . . . 1 . . . 1 . . . . . . . . . . . . . . . Registered Components 1 | . . . . . . . 1 . . . . . . . . . . . . . . . . . . . . . . . . . . Registered Prototypes 1 | . 1 . . . . . . . . . . . . . . . . . . . . . . . . . . . . . . . . Zone Layout 4 | . . . . . . . 1 . . 1 . . . . . . . 2 . . . . . . . . . . . . . . . Fabricator Hacks 3 | . . . . . . . . . . . . . . 1 . . . . . . . . 1 . . . 1 . . . . . . Load Schematic 2 | . . . . . . . . . . . . . . 1 . . . . . . . . . . . . 1 . . . . . . Build 1 | . . . . . . . . . . . . . . . . . . . . . . . 1 . . . . . . . . . . Repair Station Hacks 2 | . . . 2 . . . . . . . . . . . . . . . . . . . . . . . . . . . . . . Scan Component 1 | . . . 1 . . . . . . . . . . . . . . . . . . . . . . . . . . . . . . Repair 1 | . . . 1 . . . . . . . . . . . . . . . . . . . . . . . . . . . . . . Recycling Unit Hacks 2 | . . . . . . . . . . 2 . . . . . . . . . . . . . . . . . . . . . . . Retrieve Matter 2 | . . . . . . . . . . 2 . . . . . . . . . . . . . . . . . . . . . . . Scanalyzer 11 | . . . 2 . . . 7 . . . . . . . . . . 2 . . . . . . . . . . . . . . . Insert Component 5 | . . . 1 . . . 3 . . . . . . . . . . 1 . . . . . . . . . . . . . . . Analyze 6 | . . . 1 . . . 4 . . . . . . . . . . 1 . . . . . . . . . . . . . . . Garrison Access Hacks 11 | . . . . . . . . 1 . . . . . . . 1 . . . . 2 . 2 . 1 . 1 . 1 . 2 . . Unlock Access 8 | . . . . . . . . 1 . . . . . . . 1 . . . . 1 . 1 . 1 . 1 . 1 . 1 . . Coupler Status 3 | . . . . . . . . . . . . . . . . . . . . . 1 . 1 . . . . . . . 1 . . Unauthorized Hacks 20 | . 2 . 2 . . . 6 2 . 4 . . . 2 . . . 2 . . . . . . . . . . . . . . . Terminals 20 | . 2 . 2 . . . 6 2 . 4 . . . 2 . . . 2 . . . . . . . . . . . . . . . Track 1 | . . . . . . . 1 . . . . . . . . . . . . . . . . . . . . . . . . . . Botnet 18 | . 2 . 2 . . . 5 1 . 4 . . . 2 . . . 2 . . . . . . . . . . . . . . . Disrupt 1 | . . . . . . . . 1 . . . . . . . . . . . . . . . . . . . . . . . . . Fabricators . | . . . . . . . . . . . . . . . . . . . . . . . . . . . . . . . . . . Repair Stations . | . . . . . . . . . . . . . . . . . . . . . . . . . . . . . . . . . . Recycling Units . | . . . . . . . . . . . . . . . . . . . . . . . . . . . . . . . . . . Scanalyzers . | . . . . . . . . . . . . . . . . . . . . . . . . . . . . . . . . . . Garrison Access . | . . . . . . . . . . . . . . . . . . . . . . . . . . . . . . . . . . Data Cores Recovered 4 | . . . 1 . . . . 2 . . . . . . . . . 1 . . . . . . . . . . . . . . . Used 1 | . . . . . . . . . . . . . . . . . . 1 . . . . . . . . . . . . . . . Hacking Detections 55 | . 4 . 4 . . . 6 7 . 7 1 . . 3 . 1 . 6 . . 1 . 4 . 3 . 5 . . . 3 . . Full Trace Events 3 | . . . 1 . . . 1 1 . . . . . . . . . . . . . . . . . . . . . . . . . Feedback Events . | . . . . . . . . . . . . . . . . . . . . . . . . . . . . . . . . . . Feedback Blocked . | . . . . . . . . . . . . . . . . . . . . . . . . . . . . . . . . . . Robot Schematics Acquired . | . . . . . . . . . . . . . . . . . . . . . . . . . . . . . . . . . . Robots Built . | . . . . . . . . . . . . . . . . . . . . . . . . . . . . . . . . . . Authchips . | . . . . . . . . . . . . . . . . . . . . . . . . . . . . . . . . . . Time . | . . . . . . . . . . . . . . . . . . . . . . . . . . . . . . . . . . Total Robot Build Rating . | . . . . . . . . . . . . . . . . . . . . . . . . . . . . . . . . . . Part Schematics Acquired 8 | . . . 1 . . . 3 . . 3 . . . . . . . 1 . . . . . . . . . . . . . . . Parts Built 2 | . . . . . . . . . . . . . . . . . . . . . . . 2 . . . . . . . . . . Authchips . | . . . . . . . . . . . . . . . . . . . . . . . . . . . . . . . . . . Time 46 | . . . . . . . . . . . . . . . . . . . . . . . 46 . . . . . . . . . . Total Part Build Rating 18 | . . . . . . . . . . . . . . . . . . . . . . . 18 . . . . . . . . . . Parts Repaired 1 | . . . 1 . . . . . . . . . . . . . . . . . . . . . . . . . . . . . . Time 26 | . . . 26 . . . . . . . . . . . . . . . . . . . . . . . . . . . . . . Parts Recycled . | . . . . . . . . . . . . . . . . . . . . . . . . . . . . . . . . . . Recycled Matter . | . . . . . . . . . . . . . . . . . . . . . . . . . . . . . . . . . . Retrieved Matter . | . . . . . . . . . . . . . . . . . . . . . . . . . . . . . . . . . . Retrieved Components . | . . . . . . . . . . . . . . . . . . . . . . . . . . . . . . . . . . Parts Scanalyzed 5 | . . . 1 . . . 3 . . . . . . . . . . 1 . . . . . . . . . . . . . . . Part Schematics Acquired 5 | . . . 1 . . . 3 . . . . . . . . . . 1 . . . . . . . . . . . . . . . Parts Damaged . | . . . . . . . . . . . . . . . . . . . . . . . . . . . . . . . . . . Bothacking | -11 -10 -10 -9 -9 -9 -8 -8 -8 -8 -8 -6 -6 -6 -5 -5 -5 -5 -5 -5 -5 -4 -4 -3 -3 -3 -3 -2 -2 -2 -2 -1 -1 -1 ------------ Run | Scr Mat Min Mat Min Exi Min Mat Sto Gar Rec Fac DSF Gar Fac Was Fac Gar Fac Upp Upp Fac Gar Res Gar Res Gar Res Gar Res Gar Acc Gar Acc Used RIF Installer 9 | . . . . . . . . . 1 . . . 1 . . . 1 . . . . 1 . 1 . 1 . 1 . 1 . 1 . Hotswap 1 | . . . . . . . . . . . . . . . . . . . . . . . . . . . . 1 . . . . . Threat Obfuscator 1 | . . . . . . . . . . . . . . . . . . . . . . . . . . . . . . 1 . . . Zone Cloak 2 | . . . . . . . . . . . . . . . . . . . . . . 1 . 1 . . . . . . . . . Patrol Navigation 1 | . . . . . . . . . . . . . 1 . . . . . . . . . . . . . . . . . . . . Program Shield 1 | . . . . . . . . . . . . . . . . . 1 . . . . . . . . . . . . . . . . Autooverride 1 | . . . . . . . . . . . . . . . . . . . . . . . . . . . . . . . . 1 . Autoassimilate 1 | . . . . . . . . . . . . . . . . . . . . . . . . . . 1 . . . . . . . Robots Hacked 159 | . . . . . . . . . . . . . 5 1 3 . 4 2 . . . 18 3 10 14 5 8 15 2 4 13 12 40 Non-combat 25 | . . . . . . . . . . . . . . 1 . . . 2 . . . . 1 . 4 . 1 . . . 4 . 12 Combat 134 | . . . . . . . . . . . . . 5 . 3 . 4 . . . . 18 2 10 10 5 7 15 2 4 9 12 28 Autooverrided 8 | . . . . . . . . . . . . . . . . . . . . . . . . . . . . . . . . . 8 Autoassimilated 15 | . . . . . . . . . . . . . . . . . . . . . . . . . . . 2 1 2 3 1 2 4 Robot Hacks Applied 168 | . . . . . . . . . . . . . 6 1 3 . 5 2 . . . 19 6 10 17 6 16 14 . 1 14 10 38 parse_system 2 | . . . . . . . . . . . . . . . . . . . . . . . . . . . . . . . 1 . 1 no_distress 1 | . . . . . . . . . . . . . . . . . . . . . . . . . 1 . . . . . . . . generate_echo 1 | . . . . . . . . . . . . . . 1 . . . . . . . . . . . . . . . . . . . start_evac 2 | . . . . . . . . . . . . . . . . . . . . . . . . . 2 . . . . . . . . map_walls 7 | . . . . . . . . . . . . . . . . . . . . . . . . . 1 . . . . . 2 . 4 map_earth 2 | . . . . . . . . . . . . . . . . . . . . . . . . . . . . . . . 1 . 1 drop_inventory 3 | . . . . . . . . . . . . . . . . . . 1 . . . . . . 1 . . . . . . . 1 deconstruct_bot 1 | . . . . . . . . . . . . . . . . . . . . . . . . . . . . . . . . . 1 purge_threat 14 | . . . . . . . . . . . . . . . . . . . . . . . 2 . . . 5 . . . . . 7 find_terminals 1 | . . . . . . . . . . . . . . . . . . . . . . . . . . . 1 . . . . . . locate_traps 4 | . . . . . . . . . . . . . . . . . . . . . . . . . . . 2 . . . . . 2 block_reporting 1 | . . . . . . . . . . . . . . . . . . . . . . . 1 . . . . . . . . . . clear_recycling 1 | . . . . . . . . . . . . . . . . . . . . . . . . . . . 1 . . . . . . map_route 4 | . . . . . . . . . . . . . . . . . . 1 . . . . . . . . . . . . 1 . 2 mark_security 1 | . . . . . . . . . . . . . . . . . . . . . . . . . . . . . . . . . 1 relay_feed 1 | . . . . . . . . . . . . . . . . . . . . . . . . . . . . . . . . . 1 ignore_targets 3 | . . . . . . . . . . . . . . . 3 . . . . . . . . . . . . . . . . . . link_fov 1 | . . . . . . . . . . . . . . . . . . . . . . . . . 1 . . . . . . . . scatter_targeting 4 | . . . . . . . . . . . . . . . . . . . . . . 1 . 2 . . . . . . 1 . . spike_heat 3 | . . . . . . . . . . . . . . . . . . . . . . 1 . . . . 2 . . . . . . overload_power 1 | . . . . . . . . . . . . . . . . . . . . . . . . . 1 . . . . . . . . wipe_record 1 | . . . . . . . . . . . . . . . . . . . . . . . . . . . . . . . 1 . . disable_weapons 2 | . . . . . . . . . . . . . 1 . . . 1 . . . . . . . . . . . . . . . . reboot_system 10 | . . . . . . . . . . . . . 2 . . . . . . . . 1 . 2 . 1 . 3 . . 1 . . go_dormant 1 | . . . . . . . . . . . . . 1 . . . . . . . . . . . . . . . . . . . . overwrite_iff 36 | . . . . . . . . . . . . . . . . . 1 . . . . 6 . . 2 3 4 1 . . 5 4 10 streamctrl_high 6 | . . . . . . . . . . . . . 1 . . . 1 . . . . 1 . 1 . 1 . . . . . 1 . formatsys_low 2 | . . . . . . . . . . . . . . . . . . . . . . . 1 . . . 1 . . . . . . formatsys_high 52 | . . . . . . . . . . . . . 1 . . . 2 . . . . 9 2 5 8 1 . 10 . 1 1 5 7 Relay Couplers Released 129 | . . . . . . . . . 11 . . . 11 . . . 9 1 . . . 16 . 16 . 16 . 14 . 19 . 16 . Machine Destruction 129 | . . . . . . . . . 11 . . . 11 . . . 9 1 . . . 16 . 16 . 16 . 14 . 19 . 16 . Attached 53 | . . . . . . . . . . . . . 4 . . . 1 1 . . . 8 2 4 5 4 4 7 . 4 2 4 3 Fabnet Peak Effective % . | . . . . . . . . . . . . . . . . . . . . . . . . . . . . . . . . . . Robots Rewired 6 | . . . . . . . . . . 3 . . . . . . . . . . . . . . . 3 . . . . . . . Allies Hacked 1 | . . . . . . . . . . . . . . . . . . . . . . . . . . . . 1 . . . . . Hacks Repelled . | . . . . . . . . . . . . . . . . . . . . . . . . . . . . . . . . . . Allies | -11 -10 -10 -9 -9 -9 -8 -8 -8 -8 -8 -6 -6 -6 -5 -5 -5 -5 -5 -5 -5 -4 -4 -3 -3 -3 -3 -2 -2 -2 -2 -1 -1 -1 -------- Run | Scr Mat Min Mat Min Exi Min Mat Sto Gar Rec Fac DSF Gar Fac Was Fac Gar Fac Upp Upp Fac Gar Res Gar Res Gar Res Gar Res Gar Acc Gar Acc Total Allies 129 | . . . . 1 . . . . . 3 . . 2 . . . 4 . . . . 16 3 6 10 8 10 12 2 4 7 12 29 Largest Group 9 | . . . . 1 . . . . . 3 1 1 2 . . . 2 . . . . 3 6 7 5 3 3 6 8 9 3 4 4 Highest-Rated Group 552 | . . . . 31 . . . . . 62 27 27 24 . . . 58 . . . . 143 288 352 233 267 138 372 488 552 173 232 219 Highest-Rated Ally 219 | . . . . 31 . . . . . 27 27 27 12 . . . 49 . . . . 49 58 64 64 89 69 64 64 64 64 219 219 Total Orders 11 | . . . . . . . . 1 . . . 1 1 . . . . . . . . . . . 2 . . 2 . . . . 4 STAY 1 | . . . . . . . . . . . . . . . . . . . . . . . . . . . . 1 . . . . . FOLLOW 1 | . . . . . . . . . . . . . . . . . . . . . . . . . . . . 1 . . . . . EXPLORE 9 | . . . . . . . . 1 . . . 1 1 . . . . . . . . . . . 2 . . . . . . . 4 Ally Attacks 664 | . . . . 3 . . . . . 34 . . 3 . . . 19 . . . . 57 19 43 69 77 40 33 13 40 39 34 141 Total Damage 19345 | . . . . 43 . . . . . 301 . . 43 . . . 259 . . . . 818 520 1472 1863 2376 1108 900 304 1603 1551 983 5201 Kills 91 | . . . . 2 . . . . . 9 . . 1 . . . . . . . . 8 2 3 7 17 3 4 4 4 5 3 19 Allies Corrupted 8 | . . . . . . . . . . . . . . . . . . . . . . . . . 2 1 . . . 2 1 1 1 Allies Melted 4 | . . . . . . . . . . . . . . . . . 1 . . . . . . . 1 . . 1 . . 1 . . Intel | -11 -10 -10 -9 -9 -9 -8 -8 -8 -8 -8 -6 -6 -6 -5 -5 -5 -5 -5 -5 -5 -4 -4 -3 -3 -3 -3 -2 -2 -2 -2 -1 -1 -1 ------- Run | Scr Mat Min Mat Min Exi Min Mat Sto Gar Rec Fac DSF Gar Fac Was Fac Gar Fac Upp Upp Fac Gar Res Gar Res Gar Res Gar Res Gar Acc Gar Acc Robot Analysis Total . | . . . . . . . . . . . . . . . . . . . . . . . . . . . . . . . . . . Derelict Logs Recovered 4 | . . . . 2 . . . . . . . . . . . . . . 1 1 . . . . . . . . . . . . . Drone Launches 18 | . . . . . . . . 6 . . . 2 1 . . . . . . . . . . . 2 . . . . . . . 7 Drone Recoveries 7 | . . . . . . . . . . . . 1 . . . . . . . . . . . . 2 . . . . . . . 4 Exploration | -11 -10 -10 -9 -9 -9 -8 -8 -8 -8 -8 -6 -6 -6 -5 -5 -5 -5 -5 -5 -5 -4 -4 -3 -3 -3 -3 -2 -2 -2 -2 -1 -1 -1 ------------- Run | Scr Mat Min Mat Min Exi Min Mat Sto Gar Rec Fac DSF Gar Fac Was Fac Gar Fac Upp Upp Fac Gar Res Gar Res Gar Res Gar Res Gar Acc Gar Acc Turns Passed 44148 | . 744 98 968 1173 1054 653 1966 1324 1231 1079 68 378 1133 262 120 123 1579 1421 1271 524 398 3789 632 2621 1118 3983 2530 1709 203 1665 1072 1513 5746 Spaces Moved 21621 | 1 445 74 472 657 651 363 838 495 682 463 38 130 557 185 84 72 775 714 793 244 176 1902 368 1029 502 1486 1189 941 115 949 563 864 2804 Core 32 | . . . . . . . . . . . . 7 . . . . . . . . . 25 . . . . . . . . . . . Treads 17108 | . . . 326 657 651 363 838 495 682 463 38 123 . . . 66 775 317 55 3 . 446 368 1029 502 1486 1189 941 115 949 563 864 2804 Legs 1881 | 1 440 10 . . . . . . . . . . 557 185 84 6 . . . 47 176 375 . . . . . . . . . . . Wheels 2420 | . 5 64 146 . . . . . . . . . . . . . . 397 738 194 . 876 . . . . . . . . . . . Hover . | . . . . . . . . . . . . . . . . . . . . . . . . . . . . . . . . . . Flight 180 | . . . . . . . . . . . . . . . . . . . . . . 180 . . . . . . . . . . . Fastest Speed 23 | 120 95 100 90 160 160 160 160 160 160 160 160 160 120 120 120 120 160 101 130 175 186 23 160 158 156 236 145 150 150 152 150 150 150 Average Speed 164 | 120 125 112 138 160 160 160 174 160 160 160 160 171 142 132 133 158 160 148 155 178 188 151 160 222 194 239 156 153 153 152 151 150 151 Slowest Speed 480 | 120 190 190 160 160 160 160 240 160 160 160 160 350 190 190 190 240 160 480 240 320 260 330 163 238 238 240 240 158 232 152 152 150 155 Overloaded Moves . | . . . . . . . . . . . . . . . . . . . . . . . . . . . . . . . . . . Propulsion Burnouts . | . . . . . . . . . . . . . . . . . . . . . . . . . . . . . . . . . . Robots Hopped . | . . . . . . . . . . . . . . . . . . . . . . . . . . . . . . . . . . Cave-ins Triggered . | . . . . . . . . . . . . . . . . . . . . . . . . . . . . . . . . . . Exploration Rate (%) 53 | 2 74 25 46 98 78 52 71 72 83 77 2 83 78 7 67 2 84 22 87 22 5 86 10 89 15 94 32 84 5 94 15 80 72 Regions Visited 33 Branch Regions 8 Pre-discovered Areas 2 | . . . . 1 . . . . . . . . . . . . . . . 1 . . . . . . . . . . . . . Known Exits Taken 10 | . . . . . . . 1 1 . . 1 . . . . 1 . . . . 1 . 1 . 1 . 1 . 1 . 1 . . Unknown Exits Taken 11 | 1 1 1 1 1 1 1 . . . 1 . . . . . . . 1 1 1 . . . . . . . . . . . . . Scrap Searched 4 | . . . . 2 . . . . . . . . . . . . . . 1 1 . . . . . . . . . . . . . Spaces Dug 325 | . . . . 1 . . 9 7 20 10 . . 4 . . . . 9 . . 8 5 . 1 . . 40 2 21 34 18 26 110 Terrain Destroyed 1761 | . . . . 39 . 18 52 31 49 10 . 33 4 . . . 34 195 13 11 43 20 1 27 2 129 93 67 22 64 29 85 690 Melee 31 | . . . . 1 . . 9 7 . 10 . . 4 . . . . . . . . . . . . . . . . . . . . Projectile 439 | . . . . . . . 3 4 . . . . . . . . 14 69 5 11 4 13 1 12 2 21 47 11 1 27 17 12 165 AOE 1286 | . . . . 38 . 18 40 20 49 . . 33 . . . . 20 126 8 . 39 7 . 15 . 108 46 55 21 34 12 73 524 Terrain Rammed . | . . . . . . . . . . . . . . . . . . . . . . . . . . . . . . . . . . Walls Destroyed . | . . . . . . . . . . . . . . . . . . . . . . . . . . . . . . . . . . Machines Disabled . | . . . . . . . . . . . . . . . . . . . . . . . . . . . . . . . . . . Actions | -11 -10 -10 -9 -9 -9 -8 -8 -8 -8 -8 -6 -6 -6 -5 -5 -5 -5 -5 -5 -5 -4 -4 -3 -3 -3 -3 -2 -2 -2 -2 -1 -1 -1 --------- Run | Scr Mat Min Mat Min Exi Min Mat Sto Gar Rec Fac DSF Gar Fac Was Fac Gar Fac Upp Upp Fac Gar Res Gar Res Gar Res Gar Res Gar Acc Gar Acc Total 27885 | . 534 81 659 726 666 407 1185 840 776 787 45 208 808 203 89 82 999 977 821 286 222 2698 408 1289 615 1819 1709 1150 136 1105 732 1041 3782 Wait 1978 | . 12 . 42 8 . 8 124 185 46 4 2 14 94 . . . 93 111 . 11 27 387 4 75 9 94 149 75 5 17 44 85 253 Move 21594 | . 444 73 471 656 650 362 837 495 681 462 37 129 556 185 83 71 774 713 792 243 175 1901 368 1028 502 1485 1189 940 115 948 563 863 2803 Hop . | . . . . . . . . . . . . . . . . . . . . . . . . . . . . . . . . . . Pick Up 433 | . 6 . 21 14 4 7 39 9 2 . 3 10 15 6 . 1 16 16 . 4 2 69 7 19 9 26 42 7 . 13 8 11 47 Fast Attach 254 | . 3 . 4 . 2 1 11 8 1 . . 11 6 1 . 2 9 16 . 4 2 33 3 8 11 10 32 17 6 9 11 3 30 Attach 205 | . 3 1 6 4 3 2 14 7 1 . 3 3 6 2 . 2 3 8 7 1 2 18 3 13 6 15 18 6 . 7 5 4 32 Detach 117 | . . . 1 . 4 1 4 2 1 . . . 5 . . 1 3 3 . . . 15 2 7 5 11 16 8 . 4 1 5 18 Swap 401 | . 6 4 16 5 1 2 21 19 10 2 . 2 11 1 2 1 16 10 1 2 2 27 4 24 13 32 41 16 2 13 13 10 72 Drop 467 | . 5 . 29 9 2 6 46 17 7 . . 2 19 5 . 4 18 19 . . 1 48 6 11 18 32 54 15 5 15 19 6 49 Fire 1882 | . 54 3 68 27 . 18 73 82 27 . . 37 37 3 4 . 66 76 4 16 8 157 9 80 37 104 155 65 3 79 68 53 469 Melee 78 | . . . . 1 . . 9 10 . 13 . . 44 . . . 1 . . . . . . . . . . . . . . . . Ram 16 | . . . . . . . . . . . . . . . . . . 2 14 . . . . . . . . . . . . . . Kick 1 | . 1 . . . . . . . . . . . . . . . . . . . . . . . . . . . . . . . . Crush 51 | . . . 1 2 . . 7 6 . 1 . . . . . . . 3 3 5 3 . 2 . 1 . 13 . . . . . 4 Escape Stasis 99 | . . . . . . . . . . . . . 15 . . . . . . . . 42 . 24 2 10 . 1 . . . 1 4 Rewire 309 | . . . . . . . . . . 305 . . . . . . . . . . . 1 . . 2 . . . . . . . 1 Trap . | . . . . . . . . . . . . . . . . . . . . . . . . . . . . . . . . . . Miscellaneous . | . . . . . . . . . . . . . . . . . . . . . . . . . . . . . . . . . . Route ------- -11/Scrapyard -10/Materials (discovered 4 exits: *Mat x2 / [*Min x2]) -10/Mines -9/Materials -9/Mines (discovered 3 exits: *Mat x2 / *Exi) -9/Exiles (discovered 2 exits: [*Min x2]) -8/Mines -8/Materials (discovered 4 exits: [*Fac x2] / *Sto x2) -8/Storage -8/Garrison (discovered 3 exits: *Rec x3) -8/Recycling -6/Factory -6/DSF -6/Garrison (discovered 2 exits: *Fac x2) -5/Factory -5/Waste -5/Factory -5/Garrison (discovered 3 exits: *Fac x3) -5/Factory -5/Upper Caves -5/Upper Caves (discovered 2 exits: *Fac / Zhi) -4/Factory -4/Garrison (discovered 3 exits: *Res x3) -3/Research -3/Garrison (discovered 3 exits: *Res x3) -3/Research (discovered 2 exits: [*Tes] / Gar) -3/Garrison (discovered 3 exits: *Res x3) -2/Research (discovered 4 exits: *Acc / Qua x2 / Gar) -2/Garrison (discovered 3 exits: *Res x3) -2/Research -2/Garrison (discovered 3 exits: *Acc x3) -1/Access -1/Garrison (discovered 3 exits: [*Acc x3]) -1/Access To Epsilon Eridani History --------- Turn | Location | Event 1 | -11/Scrapyard | Discovered new exit (range 0) 1 | -11/Scrapyard | Entered Materials 295 | -10/Materials | Discovered new exit (range 16) 301 | -10/Materials | Build established: Mutant 393 | -10/Materials | Discovered new exit (range 11) 518 | -10/Materials | Discovered new exit (range 5) 528 | -10/Materials | Discovered new exit (range 16) 638 | -10/Materials | Core integrity fell below 50% 664 | -10/Materials | Core integrity fell below 20% 694 | -10/Materials | Lost 4 parts (1p2n1w) 745 | -10/Materials | Entered Mines 833 | -10/Mines | Discovered new exit (range 7) 843 | -10/Mines | Entered Materials 843 | -9/Materials | Evolved 2 slots: Propulsion x1, Weapon x1 1160 | -9/Materials | Build established: Scavenger-Gunner 1243 | -9/Materials | Repaired Lgt. Armor Plating? 1363 | -9/Materials | Discovered new exit (range 16) 1642 | -9/Materials | Destroyed 8 combat bots 1811 | -9/Materials | Entered Mines 1820 | -9/Mines | Met a Derelict bent on vengeance 1827 | -9/Mines | Learned Materials stockpile data 1935 | -9/Mines | Discovered new exit (range 13) 2061 | -9/Mines | Learned location of Zion (-6) 2084 | -9/Mines | Received a Mining Laser from a helpful Derelict 2270 | -9/Mines | Assembled infested the area 2326 | -9/Mines | Core integrity fell below 50% 2375 | -9/Mines | Destroyed 15 combat bots 2375 | -9/Mines | Lost 4 parts (1p2n1w) 2601 | -9/Mines | A weapon hastily lodged in a ceiling crevice suddenly fell to the ground 2620 | -9/Mines | Discovered new exit (range 11) 2784 | -9/Mines | Build established: Tank 2976 | -9/Mines | Deemed a non-threat by the Exiles lab entrance 2978 | -9/Mines | Discovered new exit (range 5) 2984 | -9/Mines | Entered Exiles 3005 | -9/Exiles | Discovered new exit (range 15) 3026 | -9/Exiles | Met 8R-AWN 3055 | -9/Exiles | Met EX-HEX 3104 | -9/Exiles | Met EX-BIN 3140 | -9/Exiles | Aligned with FarCom system 3141 | -9/Exiles | Given EX-Vault access code 3389 | -9/Exiles | Opened EX-Vault 3499 | -9/Exiles | Found Prototype Ballistic Cannon 3499 | -9/Exiles | Identified AWS/Autocannon 3536 | -9/Exiles | Warned to stay clear of 0b10 Research branches 3649 | -9/Exiles | Found Prototype Processor 3649 | -9/Exiles | Identified 0b10 Alert Chip 3743 | -9/Exiles | Met EX-DEC 3793 | -9/Exiles | Visited The Gauntlet 3950 | -9/Exiles | Build established: Skirmisher 4021 | -9/Exiles | Discovered new exit (range 12) 4038 | -9/Exiles | Left Exiles lab with 0b10 Alert Chip 4038 | -9/Exiles | Entered Mines 4332 | -8/Mines | Build established: Scavenger-Skirmisher 4618 | -8/Mines | Discovered new exit (range 12) 4691 | -8/Mines | Entered Materials 4691 | -8/Materials | Evolved 2 slots: Utility x2 4721 | -8/Materials | Discovered new exit (range 7) 5174 | -8/Materials | Lost 3 parts (2n1u) 5220 | -8/Materials | Discovered new exit (range 16) 5686 | -8/Materials | Identified exit to Storage 5949 | -8/Materials | Lost 3 parts (1p2n) 6290 | -8/Materials | Build established: Skirmisher 6615 | -8/Materials | Discovered new exit (range 16) 6657 | -8/Materials | Entered Storage 6829 | -8/Storage | Garrison activated, responded to threat 6947 | -8/Storage | Destroyed 8 combat bots 7373 | -8/Storage | Lost 3 parts (1u2w) 7635 | -8/Storage | Build established: Scavenger-Skirmisher 7948 | -8/Storage | Garrison activated, responded to threat 7980 | -8/Storage | Identified exit to Garrison 7981 | -8/Storage | Entered Garrison 8108 | -8/Garrison | Triggered checkpoint 8154 | -8/Garrison | Garrison Relay disabled 8230 | -8/Garrison | Triggered checkpoint 8230 | -8/Garrison | Triggered checkpoint 8261 | -8/Garrison | Destroyed 7 combat bots 8506 | -8/Garrison | Discovered new exit (range 15) 8575 | -8/Garrison | Triggered checkpoint 8605 | -8/Garrison | Garrison Relay disabled 8769 | -8/Garrison | Discovered new exit (range 10) 8814 | -8/Garrison | Triggered checkpoint 8896 | -8/Garrison | Garrison Relay disabled 8982 | -8/Garrison | Triggered checkpoint 9070 | -8/Garrison | Discovered new exit (range 14) 9106 | -8/Garrison | Installed Relay Interface Framework 9212 | -8/Garrison | Entered Recycling 9213 | -8/Recycling | Joined Warlord attack on 0b10 via Recycling 9220 | -8/Recycling | Spotter reported a threat 9220 | -8/Recycling | Spotter reported a threat 9220 | -8/Recycling | Spotter reported a threat 9221 | -8/Recycling | Spotter reported a threat 9221 | -8/Recycling | Spotter reported a threat 9226 | -8/Recycling | Spotter reported a threat 9227 | -8/Recycling | Spotter reported a threat 9260 | -8/Recycling | Spotter reported a threat 9293 | -8/Recycling | Spotter reported a threat 9293 | -8/Recycling | Spotter reported a threat 9293 | -8/Recycling | Spotter reported a threat 9294 | -8/Recycling | Spotter reported a threat 9356 | -8/Recycling | Spotter reported a threat 9356 | -8/Recycling | Spotter reported a threat 9356 | -8/Recycling | Spotter reported a threat 9364 | -8/Recycling | Spotter reported a threat 9402 | -8/Recycling | Spotter reported a threat 9402 | -8/Recycling | Spotter reported a threat 9403 | -8/Recycling | Spotter reported a threat 9455 | -8/Recycling | Spotter reported a threat 9461 | -8/Recycling | Spotter reported a threat 9462 | -8/Recycling | Spotter reported a threat 9462 | -8/Recycling | Spotter reported a threat 9503 | -8/Recycling | Spotter reported a threat 9503 | -8/Recycling | Spotter reported a threat 9503 | -8/Recycling | Spotter reported a threat 9549 | -8/Recycling | Spotter reported a threat 9549 | -8/Recycling | Spotter reported a threat 9549 | -8/Recycling | Spotter reported a threat 9602 | -8/Recycling | Spotter reported a threat 9607 | -8/Recycling | Spotter reported a threat 9640 | -8/Recycling | Spotter reported a threat 9640 | -8/Recycling | Spotter reported a threat 9641 | -8/Recycling | Spotter reported a threat 9694 | -8/Recycling | Spotter reported a threat 9695 | -8/Recycling | Spotter reported a threat 9695 | -8/Recycling | Spotter reported a threat 9695 | -8/Recycling | Spotter reported a threat 9742 | -8/Recycling | Spotter reported a threat 9742 | -8/Recycling | Spotter reported a threat 9747 | -8/Recycling | Spotter reported a threat 9793 | -8/Recycling | Spotter reported a threat 9793 | -8/Recycling | Spotter reported a threat 9793 | -8/Recycling | Spotter reported a threat 9800 | -8/Recycling | Spotter reported a threat 9851 | -8/Recycling | Spotter reported a threat 9852 | -8/Recycling | Spotter reported a threat 9853 | -8/Recycling | Spotter reported a threat 9862 | -8/Recycling | Spotter reported a threat 9906 | -8/Recycling | Spotter reported a threat 9906 | -8/Recycling | Spotter reported a threat 9926 | -8/Recycling | Spotter reported a threat 9966 | -8/Recycling | Spotter reported a threat 9966 | -8/Recycling | Spotter reported a threat 9979 | -8/Recycling | Spotter reported a threat 10015 | -8/Recycling | Spotter reported a threat 10036 | -8/Recycling | Build established: Scavenger-Mutant 10074 | -8/Recycling | Spotter reported a threat 10075 | -8/Recycling | Spotter reported a threat 10117 | -8/Recycling | Spotter reported a threat 10118 | -8/Recycling | Spotter reported a threat 10127 | -8/Recycling | Spotter reported a threat 10128 | -8/Recycling | Spotter reported a threat 10167 | -8/Recycling | Spotter reported a threat 10167 | -8/Recycling | Spotter reported a threat 10168 | -8/Recycling | Spotter reported a threat 10176 | -8/Recycling | Spotter reported a threat 10220 | -8/Recycling | Spotter reported a threat 10221 | -8/Recycling | Spotter reported a threat 10225 | -8/Recycling | Discovered new exit (range 15) 10229 | -8/Recycling | Spotter reported a threat 10274 | -8/Recycling | Spotter reported a threat 10282 | -8/Recycling | Spotter reported a threat 10291 | -8/Recycling | Entered Factory 10291 | -6/Factory | Accompanied by 1 ally 10291 | -6/Factory | Evolved 4 slots: Propulsion x1, Utility x3 10310 | -6/Factory | 2 allies followed out of Recycling 10357 | -6/Factory | Identified exit to DSF 10359 | -6/Factory | Entered DSF 10359 | -6/DSF | Accompanied by 1 ally 10389 | -6/DSF | Additional patrols routed to DSF 10473 | -6/DSF | Lost 7 parts (4n1u2w) 10600 | -6/DSF | Sterilization system engaged 10613 | -6/DSF | Lost 5 parts (1n2u2w) 10616 | -6/DSF | Discovered new exit (range 15) 10620 | -6/DSF | Ambient heat levels rising (+10) 10635 | -6/DSF | Ambient heat levels rising (+10) 10650 | -6/DSF | Ambient heat levels rising (+10) 10665 | -6/DSF | Ambient heat levels rising (+10) 10680 | -6/DSF | Ambient heat levels rising (+10) 10695 | -6/DSF | Ambient heat levels rising (+10) 10710 | -6/DSF | Ambient heat levels rising (+10) 10725 | -6/DSF | Ambient heat levels rising (+10) 10737 | -6/DSF | Entered Garrison 10806 | -6/Garrison | Triggered checkpoint 10811 | -6/Garrison | Core integrity fell below 50% 10838 | -6/Garrison | Garrison Relay disabled 11001 | -6/Garrison | Triggered checkpoint 11005 | -6/Garrison | Triggered checkpoint 11147 | -6/Garrison | Discovered new exit (range 8) 11211 | -6/Garrison | Expanded RIF knowledge: Patrol Navigation 11232 | -6/Garrison | Triggered checkpoint 11268 | -6/Garrison | Garrison Relay disabled 11512 | -6/Garrison | Triggered checkpoint 11542 | -6/Garrison | Discovered new exit (range 11) 11562 | -6/Garrison | Triggered checkpoint 11627 | -6/Garrison | Garrison Relay disabled 11870 | -6/Garrison | Entered Factory 11870 | -5/Factory | Evolved 2 slots: Power x1, Utility x1 12132 | -5/Factory | Sucked down chute 12132 | -5/Factory | Entered Waste 12147 | -5/Waste | EMP discharged 12183 | -5/Waste | Spotted C-40 Crusher 12208 | -5/Waste | Spotted C-40 Crusher 12211 | -5/Waste | Spotted C-40 Crusher 12212 | -5/Waste | Spotted C-40 Crusher 12241 | -5/Waste | Discovered new exit (range 10) 12247 | -5/Waste | EMP discharged 12247 | -5/Waste | System corruption reached 10% 12252 | -5/Waste | Entered Factory 12364 | -5/Factory | Identified exit to Garrison 12375 | -5/Factory | Entered Garrison 12383 | -5/Garrison | Expanded RIF knowledge: Program Shield 12513 | -5/Garrison | Garrison Relay disabled 12660 | -5/Garrison | Triggered checkpoint 12669 | -5/Garrison | Triggered checkpoint 12944 | -5/Garrison | Discovered new exit (range 11) 12968 | -5/Garrison | Triggered checkpoint 13041 | -5/Garrison | Garrison Relay disabled 13451 | -5/Garrison | Discovered new exit (range 10) 13796 | -5/Garrison | Discovered new exit (range 15) 13850 | -5/Garrison | Triggered checkpoint 13893 | -5/Garrison | Garrison Relay disabled 13954 | -5/Garrison | Entered Factory 14625 | -5/Factory | Build established: Bothacker-Gunner 15150 | -5/Factory | Cargo convoy interrupted 15198 | -5/Factory | Destroyed 11 combat bots 15204 | -5/Factory | Lost 4 parts (1p2u1w) 15366 | -5/Factory | Discovered new exit (range 7) 15375 | -5/Factory | Entered Upper Caves 15405 | -5/Upper Caves | Lost 7 parts (4n1u2w) 15599 | -5/Upper Caves | Build established: Scavenger-Mutant 16378 | -5/Upper Caves | Build established: Scavenger-Gunner 16518 | -5/Upper Caves | Discovered new exit (range 11) 16625 | -5/Upper Caves | Learned location of 1 exit from Upper Caves 16646 | -5/Upper Caves | Entered another Upper Caves area 16647 | -5/Upper Caves | Identified exit to Zhirov 16935 | -5/Upper Caves | Learned location of Warlord (-4) 17085 | -5/Upper Caves | Lost 5 parts (1p2n1u1w) 17120 | -5/Upper Caves | Discovered new exit (range 10) 17170 | -5/Upper Caves | Entered Factory 17170 | -4/Factory | Evolved 2 slots: Propulsion x1, Utility x1 17416 | -4/Factory | Identified exit to Garrison 17503 | -4/Factory | Garrison activated, responded to threat 17568 | -4/Factory | Entered Garrison 17581 | -4/Garrison | Expanded RIF knowledge: Zone Cloak 17587 | -4/Garrison | Lost 7 parts (3n1u3w) 17672 | -4/Garrison | Lost 4 parts (1p1n1u1w) 17832 | -4/Garrison | Triggered checkpoint 18587 | -4/Garrison | Garrison Relay disabled 18744 | -4/Garrison | Build established: Scavenger-Mutant 18880 | -4/Garrison | Triggered checkpoint 18880 | -4/Garrison | Spotted B-86 Titan 18897 | -4/Garrison | Triggered checkpoint 19233 | -4/Garrison | Destroyed B-86 Titan 19446 | -4/Garrison | Discovered new exit (range 11) 19512 | -4/Garrison | Triggered checkpoint 19650 | -4/Garrison | Triggered checkpoint 19936 | -4/Garrison | Triggered checkpoint 19974 | -4/Garrison | Lost 4 parts (1p3n) 20292 | -4/Garrison | Triggered checkpoint 20421 | -4/Garrison | Discovered new exit (range 14) 20511 | -4/Garrison | Garrison Relay disabled 20699 | -4/Garrison | Discovered new exit (range 14) 20722 | -4/Garrison | Triggered checkpoint 20735 | -4/Garrison | Garrison Relay disabled 20958 | -4/Garrison | Identified exit to Research 21263 | -4/Garrison | System corruption reached 10% 21326 | -4/Garrison | System corruption reached 30% 21357 | -4/Garrison | Entered Research 21357 | -3/Research | Accompanied by 3 allies 21357 | -3/Research | Evolved 2 slots: Utility x2 21575 | -3/Research | Fabricated Enh. Quantum Rifle? 21985 | -3/Research | Identified exit to Garrison 21989 | -3/Research | Entered Garrison 21989 | -3/Garrison | Accompanied by 6 allies 22050 | -3/Garrison | Triggered checkpoint 22128 | -3/Garrison | Destroyed 10 combat bots 22190 | -3/Garrison | Lost 8 parts (2p2n4u) 22372 | -3/Garrison | Triggered checkpoint 22425 | -3/Garrison | Discovered new exit (range 9) 22470 | -3/Garrison | Triggered checkpoint 22525 | -3/Garrison | Garrison Relay disabled 22758 | -3/Garrison | Triggered checkpoint 22806 | -3/Garrison | Build established: Bothacker-Mutant 23023 | -3/Garrison | Discovered new exit (range 14) 23105 | -3/Garrison | Garrison Relay disabled 23401 | -3/Garrison | Build established: Botlord-Mutant 23550 | -3/Garrison | Triggered checkpoint 23575 | -3/Garrison | Garrison Relay disabled 23626 | -3/Garrison | Triggered checkpoint 23643 | -3/Garrison | Discovered new exit (range 15) 24059 | -3/Garrison | Expanded RIF knowledge: Zone Cloak 24294 | -3/Garrison | Triggered checkpoint 24343 | -3/Garrison | Garrison Relay disabled 24610 | -3/Garrison | Entered Research 24610 | -3/Research | Accompanied by 3 allies 24659 | -3/Research | Found Exp. Thermal Shield 24916 | -3/Research | Spotted B-86 Titan 24923 | -3/Research | Allies destroyed B-86 Titan 25015 | -3/Research | Found Hvy. Reflective Plating 25058 | -3/Research | Found Prototype Device 25058 | -3/Research | Identified Exp. ECM Suite 25080 | -3/Research | Discovered new exit (range 10) 25513 | -3/Research | Found Prototype Protection 25513 | -3/Research | Identified Centrium Heavy Armor Plating 25668 | -3/Research | Garrison activated, responded to threat 25692 | -3/Research | Cargo convoy interrupted 25728 | -3/Research | Identified exit to Garrison 25728 | -3/Research | Entered Garrison 25728 | -3/Garrison | Accompanied by 1 ally 25794 | -3/Garrison | Lost 3 parts (1u2w) 26186 | -3/Garrison | Triggered checkpoint 26362 | -3/Garrison | Garrison Relay disabled 26538 | -3/Garrison | Triggered checkpoint 26566 | -3/Garrison | Triggered checkpoint 26754 | -3/Garrison | Build established: Bothacker-Mutant 26768 | -3/Garrison | Triggered checkpoint 26966 | -3/Garrison | Spotted B-86 Titan 26975 | -3/Garrison | Allies destroyed B-86 Titan 26996 | -3/Garrison | Triggered checkpoint 27000 | -3/Garrison | Triggered checkpoint 27176 | -3/Garrison | Triggered checkpoint 27226 | -3/Garrison | Found Hvy. Reflective Plating 27304 | -3/Garrison | Build established: Scavenger-Mutant 27341 | -3/Garrison | Discovered new exit (range 13) 27394 | -3/Garrison | Expanded RIF knowledge: Autoassimilate 27468 | -3/Garrison | Triggered checkpoint 27514 | -3/Garrison | Garrison Relay disabled 27604 | -3/Garrison | Build established: Scavenger-Gunner 27730 | -3/Garrison | Triggered checkpoint 27787 | -3/Garrison | Garrison Relay disabled 27925 | -3/Garrison | Discovered new exit (range 10) 28203 | -3/Garrison | Build established: Bothacker-Mutant 28628 | -3/Garrison | Discovered new exit (range 9) 28775 | -3/Garrison | Build established: Bothacker-Gunner 28942 | -3/Garrison | Phase Generator disabled 29086 | -3/Garrison | Triggered checkpoint 29151 | -3/Garrison | Garrison Relay disabled 29711 | -3/Garrison | System corruption reached 10% 29711 | -3/Garrison | Entered Research 29711 | -2/Research | Evolved 2 slots: Propulsion x1, Utility x1 29850 | -2/Research | Found Prototype Launcher 29943 | -2/Research | Identified Adv. Micro-nuke Launcher 30211 | -2/Research | First assault squad dispatched 30513 | -2/Research | Build established: Scavenger-Mutant 30601 | -2/Research | System corruption reached 10% 30709 | -2/Research | Discovered new exit (range 12) 30780 | -2/Research | Lost 9 parts (1p2n4u2w) 31169 | -2/Research | Build established: Scavenger-Gunner 31687 | -2/Research | Identified exit to Quarantine 31707 | -2/Research | Build established: Scavenger-Mutant 31853 | -2/Research | Found Prototype Processor 31853 | -2/Research | Identified Spectral Analyzer 32185 | -2/Research | Found Prototype Launcher 32185 | -2/Research | Identified Hellfire Missile Launcher 32241 | -2/Research | Identified exit to Garrison 32241 | -2/Research | Entered Garrison 32304 | -2/Garrison | Triggered checkpoint 32347 | -2/Garrison | Garrison Relay disabled 32477 | -2/Garrison | Spotted B-90 Cyclops 32487 | -2/Garrison | Allies destroyed B-90 Cyclops 32493 | -2/Garrison | Triggered checkpoint 32498 | -2/Garrison | P-80 Master assimilated allied Plague 9b 32580 | -2/Garrison | Triggered checkpoint 32606 | -2/Garrison | Triggered checkpoint 32629 | -2/Garrison | Destroyed 7 combat bots 32680 | -2/Garrison | Triggered checkpoint 32714 | -2/Garrison | Garrison Relay disabled 32805 | -2/Garrison | Discovered new exit (range 10) 32826 | -2/Garrison | Expanded RIF knowledge: Hotswap 32962 | -2/Garrison | Triggered checkpoint 33011 | -2/Garrison | Garrison Relay disabled 33063 | -2/Garrison | Discovered new exit (range 10) 33254 | -2/Garrison | Triggered checkpoint 33261 | -2/Garrison | Discovered new exit (range 14) 33300 | -2/Garrison | Triggered checkpoint 33325 | -2/Garrison | Garrison Relay disabled 33613 | -2/Garrison | Found Unknown Device 33613 | -2/Garrison | Identified Adv. Force Booster 33950 | -2/Garrison | Entered Research 33950 | -2/Research | Accompanied by 6 allies 34153 | -2/Research | Identified exit to Garrison 34153 | -2/Research | Entered Garrison 34153 | -2/Garrison | Accompanied by 8 allies 34208 | -2/Garrison | Triggered checkpoint 34226 | -2/Garrison | Garrison Relay disabled 34314 | -2/Garrison | Triggered checkpoint 34317 | -2/Garrison | Spotted B-90 Cyclops 34332 | -2/Garrison | Triggered checkpoint 34342 | -2/Garrison | Triggered checkpoint 34375 | -2/Garrison | Destroyed B-90 Cyclops 34407 | -2/Garrison | Destroyed 12 combat bots 34539 | -2/Garrison | Discovered new exit (range 11) 34598 | -2/Garrison | Triggered checkpoint 34640 | -2/Garrison | Garrison Relay disabled 34776 | -2/Garrison | Discovered new exit (range 9) 34832 | -2/Garrison | Triggered checkpoint 34841 | -2/Garrison | Garrison Relay disabled 34926 | -2/Garrison | Triggered checkpoint 34958 | -2/Garrison | Build established: Botlord-Mutant 35000 | -2/Garrison | Discovered new exit (range 10) 35029 | -2/Garrison | Expanded RIF knowledge: Threat Obfuscation 35072 | -2/Garrison | Triggered checkpoint 35818 | -2/Garrison | Entered Access 35818 | -1/Access | Accompanied by 1 ally 35818 | -1/Access | Evolved 2 slots: Utility x2 36317 | -1/Access | Found Unknown Device 36317 | -1/Access | Identified Adv. Force Booster 36318 | -1/Access | First assault squad dispatched 36773 | -1/Access | Found Prototype Device 36773 | -1/Access | Identified Exp. Force Field 36868 | -1/Access | Garrison activated, responded to threat 36890 | -1/Access | Identified exit to Garrison 36890 | -1/Access | Entered Garrison 36890 | -1/Garrison | Accompanied by 1 ally 36898 | -1/Garrison | Expanded RIF knowledge: Autooverride 36920 | -1/Garrison | Triggered checkpoint 37015 | -1/Garrison | Garrison Relay disabled 37024 | -1/Garrison | Triggered checkpoint 37162 | -1/Garrison | Triggered checkpoint 37162 | -1/Garrison | Triggered checkpoint 37168 | -1/Garrison | Spotted B-99 Colossus 37180 | -1/Garrison | Assimilated Colossus 10a with formatsys_high 37186 | -1/Garrison | Triggered checkpoint 37223 | -1/Garrison | Destroyed 32 combat bots 37460 | -1/Garrison | Discovered new exit (range 15) 37750 | -1/Garrison | Discovered new exit (range 11) 37835 | -1/Garrison | Discovered new exit (range 9) 37844 | -1/Garrison | Triggered checkpoint 37870 | -1/Garrison | Garrison Relay disabled 37998 | -1/Garrison | Triggered checkpoint 38015 | -1/Garrison | Garrison Relay disabled 38162 | -1/Garrison | Triggered checkpoint 38208 | -1/Garrison | Garrison Relay disabled 38403 | -1/Garrison | Entered Access 38403 | -1/Access | Accompanied by 2 allies 38628 | -1/Access | Energy Cycler disabled 38781 | -1/Access | Found Prototype Device 38781 | -1/Access | Identified Exp. Transmission Jammer 38903 | -1/Access | First assault squad dispatched 39271 | -1/Access | Destroyed 11 combat bots 39275 | -1/Access | Garrison activated, responded to threat 39369 | -1/Access | Destroyed 7 combat bots 39422 | -1/Access | Garrison activated, responded to threat 39888 | -1/Access | Spotted B-99 Colossus 39889 | -1/Access | Assimilated Colossus 10b with formatsys_high 40093 | -1/Access | Garrison activated, responded to threat 41553 | -1/Access | Build established: Botlord-Gunner 42130 | -1/Access | Spotted B-99 Colossus 42159 | -1/Access | Destroyed B-99 Colossus 42682 | -1/Access | Found Prototype Processor 42682 | -1/Access | Identified Exp. Core Analyzer 42850 | -1/Access | System corruption reached 10% 42860 | -1/Access | Garrison activated, responded to threat 42982 | -1/Access | High security lockdown imminent 43022 | -1/Access | Destroyed 8 combat bots 43062 | -1/Access | High security lockdown engaged 43243 | -1/Access | Sterilization system engaged 43281 | -1/Access | Destroyed 10 combat bots 43299 | -1/Access | Scanned by Researcher 43299 | -1/Access | Spotted Striker 43300 | -1/Access | Spotted Investigator 43304 | -1/Access | Spotted Executioner 43309 | -1/Access | Destroyed Investigator 43317 | -1/Access | Destroyed Striker 43328 | -1/Access | Destroyed Executioner 43344 | -1/Access | Lost 6 parts (2n4u) 43361 | -1/Access | Destroyed 16 combat bots 43543 | -1/Access | Ambient heat levels rising (+10) 43604 | -1/Access | Core integrity fell below 50% 43664 | -1/Access | Lost 6 parts (1n3u2w) 43693 | -1/Access | Ambient heat levels rising (+10) 43801 | -1/Access | Spotted B-99 Colossus 43843 | -1/Access | Ambient heat levels rising (+10) 43993 | -1/Access | Ambient heat levels rising (+10) 44129 | -1/Access | Discovered new exit (range 9) 44143 | -1/Access | Ambient heat levels rising (+10) 44149 | *** | Escaped! Last Messages --------------- 44129_ Slug penetrates Sealed Heavy Doors. 44129_ Sealed Heavy Doors breached. 44129_ Main Access Shell breached. 44129_ EXIT=FOUND 44130_ Power failure, Quantum Reactor shutdown. Point Defense Array melts. 44139_ Overheating: System interference. 44139_ Adv. Target Analyzer temporarily disabled. 44139_ Lrn. Tractor Beam temporarily disabled. 44139_ Adv. Heat Sink temporarily disabled. 44141_ Overheating: Matter decay (-52). 44143_ ALERT: Ambient heat levels +10. 44144_ The Access Shell folds into the floor. 44148_ Power failure, Quantum Reactor shutdown. 44148_ Overheating: Energy bleed (-144). 44149_ Overheating: Relay Coupler [Sentry] damaged (-2). 44149_ Overheating: Quantum Reactor damaged (-69). 44149_ Overheating: Hvy. Linear Accelerator damaged (-59). 44149_ Overheating: Lrn. Tractor Beam damaged (-14). [Achievement: One Last FU] Map ----- +----------------------------------------------------+ | #####????????????????????????# #??????# # | | ?????????????????????????????# #?????## | | ?????????????????????????????# #?????# = | | ?????????????????????????????# #?????## | | ?????????????????????????????########?????# % | | ??????????????????????????????????????????# | | ??????????????????????????????????????????# | | ??????????????????????????????????????????## | | ?? ##????????????????????????????########## | | ## ##??????????????????????????# # # | | """""""####??????????????????????# # # | | #??????????????????????# ! # # | | #??????????????????????# ! + # | | #??????????????????????# ! # # | | +??????????????????????# # # | | ???????????????????????# # ## | | !% ???????????????????????## # #? | | !%! # #??????????????????????##;########## #? | | === # #??????????##?????????## ##????????# #? | | # % #???????#### ##########;##?????????# #? | | # #?????""T""" ""??????????# #? | | #?# """ """ ""???BB??????# #? | | ##?# "????BB??????# #? | | # #?# "???????????? #? | | ## # #?# "" "???????????? #? | | ?# "% #?# @" "???????????? +? | | ?# # #?# "???????????? #? | | ?# # #?# "????BB??????? #? | | ?# #? #?# "????BB??????? #? | | ?# # #?# "????????????? ??? | | ## # #?# ####### ##########??????????????????? | | + #?# #?????##????????????????????????????? | | ##+######## #??#####????????????????????????????? | | # # #?? "????????????????????????????? | | # # #? """"???????????????????????????? | | # " # +? """""???????????????????????????? | | # """ # # """"????????????????????????? | | # """ + # """" ??????????????????????### | | # " = # + " #??????????????????????# | | # = # # #??????????????????????# | | # # # #??????????????????????# | | ########### #? #??????????????????????# | | # + #? #??????????????????????? | | # ] # #?? #??????????????????????# | | # " # #?? #??????????????????????# | | # [ """?# #???##########??????????????????????+ | | # ""?# #???????????????????????????????????? | | # ??# #???????????????????????????????????? | | #! ??# #???????????????????????????????????? | | ?? ???# #????????????######?????????????????? | +----------------------------------------------------+ Best States ------------- Heat Dissipation 122 Coolant Potential 100 Energy Generation 54 Energy Capacity 930 Matter Stores 700 Matter Capacity 700 Sight Range 22 Terrain Scan Density 10 Power Amplification 30 Corruption Containment 20 Corruption Block 20 Armor Coverage 2400 Resistance: KI 25 Resistance: TH 30 Resistance: EM 15 Core Shielding 30 Propulsion Shielding 33 Utility Shielding 33 Weapon Shielding 66 Weapon Cycling 25 Phase Shifting 15 Evasion (%) 65 Targeting Accuracy 14 Launcher Accuracy 40 Target Analysis 8 Core Analysis 6 Recoil Reduction 6 Particle Charging 20 Kinecelleration 40 Defensive Hacking 14 Relay Coupler Types 5 Relay Coupler Value 132 Item Schematics ----------------- Disposable Heat Sink | -9/Materials | Scanalyzed Imp. Heat Sink | -8/Materials | Scanalyzed Lrg. Storage Unit | -8/Materials | Scanalyzed Lgt. Treads | -8/Materials | Scanalyzed Adv. Assault Cannon | -8/Recycling | Hacked Focal Shield | -8/Recycling | Hacked Assault Cannon | -8/Recycling | Hacked Med. Treads | -5/Factory | Scanalyzed Robot Schematics ------------------ None Fabricated ------------ Enh. Quantum Rifle | x2 | -3/Research | Preloaded Alien Tech Used ----------------- None Achievements -------------- One Last FU Turtlemind \\IAMDERELICT Challenges ------------ None Game ------ Seed StorageMicrowarpChip Manual? 0 Play Time 08:55:22 Cumulative 222.2 hours Start 2022.04.21 @ 19:17:08 End 2022.04.24 @ 04:09:42 Sessions 5 Manual Loads 0 Difficulty Rogue Special Mode None Game No. 67 Rogue 67 Adventurer 0 Explorer 0 Win Type 0 Total 15 Types 7/1/1/3/1/0/2/0/0 Lore% 77 Gallery% 82 Achievement% 71 Wizard Run 0 Options --------- ASCII 0 Keyboard 1 Movement Numpad Keybinds 0 Fullscreen 1 Font 12/Terminus Map View 83x54 Tactical HUD 1 Map Filters NONE Filters NONE Steam 0 RUN: efc8846f-7f0f-490d-99ac-b2d8208eb947